Cogmind - Beta 13 X1 @@@ ROGUE MODE // 2023.09.05 @ 15:24:05 Player: aoemica Result: Heading to fleet! Performance ------------- Evolutions (9) 4500 Regions Visited (42) 8400 Robots Destroyed (493) 2465 Value Destroyed (20322) 20322 Prototype IDs (320) 6400 Alien Tech Used (14) 2800 Bonus (58492) 58492 TOTAL SCORE: 103379 Bonus ------- Triggered Max Security 2000 High Alert Combat Kills 785 Follower Combat Kills 1463 Entered Garrisons 200 Aligned with FarCom 300 Met Data Miner 300 Met Imprinter 300 Met Zhirov 300 Met Warlord at Base 500 MAIN.C Attacked Warlord 500 Warlord Defense Kills 1882 Used Core Reset Matrix 3000 Met Warlord at Research 2000 Recovered Sigix Corpse 2000 Destroyed MAIN.C Guards 500 Met MAIN.C 5000 Destroyed MAIN.C Shell 5000 Destroyed MAIN.C 10000 Met Warlord at Command 2000 Met Architect 300 Destroyed A8 300 Destroyed A6 400 Destroyed A5 500 Destroyed A4 700 Destroyed A3 800 Destroyed A2 1000 Destroyed Architect 15000 Win 3000 Friendly Fire -1538 Cogmind --------- Core Integrity 1345/1850 Matter 280/300 Energy 334/340 System Corruption 0% Temperature Cool (14) Movement Flying (17) Location To Fleet Rendezvous Parts ------- > --- POWER (3) -------- Micro Antimatter Reactor Micro Antimatter Reactor Zero-point Reactor > --- PROPULSION (7) --- Electron Diverter Electron Diverter Electron Diverter Cooled Impulse Thruster Cooled Impulse Thruster Cooled Impulse Thruster Improved Q-thruster > --- UTILITY (14) ----- Experimental Melee Analysis Suite Experimental Melee Analysis Suite Experimental Melee Analysis Suite Experimental Core Analyzer Experimental Armor Integrity Analyzer Femtoactuators Advanced Force Booster Experimental Reaction Control System Experimental Phase Shifter Experimental Utility Shielding Centrium Light Armor Plating Centrium Light Armor Plating Centrium Linked Plating Advanced Shield Generator > --- WEAPON (2) ------- Plasma Lance Plasma Lance > --- INVENTORY (5) ---- Integrity Redistributor Sigix Broadsword Sigix Corpse Peak State ------------ > --- POWER ------------ Micro Antimatter Reactor Micro Antimatter Reactor Zero-point Reactor > --- PROPULSION ------- Electron Diverter Electron Diverter Electron Diverter Cooled Impulse Thruster Cooled Impulse Thruster Improved Q-thruster Improved Q-thruster > --- UTILITY ---------- High-capacity Storage Unit Advanced Quantum Shading Machine Experimental Terrain Scan Processor Experimental Melee Analysis Suite Experimental Melee Analysis Suite Experimental Core Analyzer Experimental Armor Integrity Analyzer Femtoactuators Experimental Reaction Control System Experimental Phase Shifter Experimental Utility Shielding Centrium Light Armor Plating Centrium Light Armor Plating Centrium Medium Armor Plating > --- WEAPON ----------- Sigix Broadsword > --- INVENTORY -------- Micro Antimatter Reactor Cooled Nuclear Pulse Thruster Cooled Impulse Thruster Experimental Energy Well Long-range Terrain Scanner Experimental Melee Analysis Suite Experimental Melee Analysis Suite Advanced Force Booster Experimental Utility Shielding Advanced Shield Generator Transdimensional Reconstructor Integrity Redistributor Integrity Redistributor Integrity Redistributor Spacefold Activator Perforator Nanosword Plasma Lance Plasma Lance [Rating: 256] Favorites ----------- Power Light Neutrino Core Engine Ion Engine Power Core Light Neutrino Core Reactor Micro Antimatter Reactor Propulsion Cooled Nuclear Pulse Thruster Treads Light Treads Leg Aluminum Leg Flight Unit Cooled Nuclear Pulse Thruster Utility Advanced Hacking Suite Device Structural Scanner Storage High-capacity Storage Unit Processor Modified TNC Hackware Advanced Hacking Suite Protection Improved Light Armor Plating Artifact Spacefold Activator Weapon Mini Smartbomb Launcher Energy Gun Beamcaster Energy Cannon Particle Cannon Ballistic Gun Assault Rifle Ballistic Cannon Assault Cannon Launcher Mini Smartbomb Launcher Special Weapon Mining Laser Impact Weapon Heavy Mace Slashing Weapon Power Sword Piercing Weapon CR-A16's Pointy Stick Special Melee Weapon Datajack Build | -11 -10 -10 -10 -9 -8 -8 -8 -7 -7 -7 -7 -7 -7 -6 -6 -6 -6 -6 -6 -6 -5 -5 -5 -5 -5 -5 -5 -4 -4 -4 -4 -4 -4 -4 -3 -3 -3 -3 -2 -1 -1 -1 ------- Run | Jun Mat Min Exi Min Mat Gar Mat Fac Was Fac Low Low Zio Pro Fac Was Fac Low Low Dat Pro Fac Was Fac Upp Upp Zhi Pro Fac Was Fac Upp Upp War Pro Res Qua Sec Res Acc Com Ac0 Slots Evolved 18 | . . . . . 4 . . 2 . . . . . . 2 . . . . . . 2 . . . . . . 2 . . . . . . 2 . . 2 2 . . Power 2 | . . . . . . . . . . . . . . . . . . . . . . . . . . . . . 1 . . . . . . . . . . 1 . . Propulsion 4 | . . . . . 1 . . 1 . . . . . . . . . . . . . 1 . . . . . . 1 . . . . . . . . . . . . . Utility 12 | . . . . . 3 . . 1 . . . . . . 2 . . . . . . 1 . . . . . . . . . . . . . 2 . . 2 1 . . Weapon . | . . . . . . . . . . . . . . . . . . . . . . . . . . . . . . . . . . . . . . . . . . . Parts Attached 627 | . 21 7 4 12 44 20 23 44 . 22 2 1 1 . 13 7 18 . 6 1 2 22 . 21 4 4 5 1 47 . 29 2 . 17 . 23 9 8 68 25 57 37 Power 42 | . 2 1 . 1 1 . 1 4 . 2 . . . . 2 . 2 . . . . 2 . . . . 2 . 3 . . . . 3 . . . . 8 1 5 2 Engine 5 | . 2 1 . . 1 . . . . . . . . . . . . . . . . 1 . . . . . . . . . . . . . . . . . . . . Core 20 | . . . . 1 . . 1 4 . 2 . . . . 2 . 2 . . . . 1 . . . . 1 . 2 . . . . 2 . . . . 2 . . . Reactor 17 | . . . . . . . . . . . . . . . . . . . . . . . . . . . 1 . 1 . . . . 1 . . . . 6 1 5 2 Propulsion 71 | . 4 . 1 1 9 . 9 3 . 5 . . . . 1 4 1 . . . . 4 . 5 1 . . . 3 . 5 . . 1 . . 3 1 2 . 8 . Treads 19 | . 3 . 1 1 8 . 6 . . . . . . . . . . . . . . . . . . . . . . . . . . . . . . . . . . . Leg 2 | . 1 . . . . . . . . . . . . . . 1 . . . . . . . . . . . . . . . . . . . . . . . . . . Wheel . | . . . . . . . . . . . . . . . . . . . . . . . . . . . . . . . . . . . . . . . . . . . Hover . | . . . . . . . . . . . . . . . . . . . . . . . . . . . . . . . . . . . . . . . . . . . Flight 50 | . . . . . 1 . 3 3 . 5 . . . . 1 3 1 . . . . 4 . 5 1 . . . 3 . 5 . . 1 . . 3 1 2 . 8 . Utility 365 | . 5 . 1 2 21 . 8 21 . 13 2 1 . . 8 3 11 . 6 1 2 13 . 14 3 4 3 1 29 . 22 2 . 6 . 21 5 7 56 24 32 18 Device 174 | . 1 . . 1 6 . 2 12 . 5 . . . . 6 2 2 . 4 . 1 3 . 4 2 4 1 . 17 . 14 1 . 2 . 12 4 2 29 14 14 9 Storage 16 | . 2 . 1 . . . 1 . . . . . . . 1 . . . . . . 1 . 1 . . 1 . 1 . 1 . . . . 1 . . 2 1 2 . Processor 21 | . . . . . 1 . . 1 . 1 1 . . . 1 . 1 . . . . 1 . 3 . . . . . . 1 . . . . 1 . . 2 1 5 1 Hackware 31 | . . . . . . . 3 4 . . . . . . . . 4 . . 1 . 1 . . . . . . 3 . 2 . . 1 . 2 1 . 3 4 . 2 Protection 109 | . 2 . . 1 14 . 2 4 . 7 1 1 . . . 1 4 . 2 . 1 7 . 6 1 . 1 1 8 . 4 1 . 3 . 5 . 5 6 4 11 6 Artifact 14 | . . . . . . . . . . . . . . . . . . . . . . . . . . . . . . . . . . . . . . . 14 . . . Weapon 149 | . 10 6 2 8 13 20 5 16 . 2 . . 1 . 2 . 4 . . . . 3 . 2 . . . . 12 . 2 . . 7 . 2 1 . 2 . 12 17 Energy Gun 5 | . . . . 1 2 . . 1 . . . . . . . . . . . . . . . . . . . . . . . . . 1 . . . . . . . . Energy Cannon 19 | . 5 1 1 3 . . . 2 . . . . . . 1 . . . . . . . . . . . . . 2 . 1 . . 1 . . . . . . . 2 Ballistic Gun 27 | . 1 1 . 2 7 10 3 3 . . . . . . . . . . . . . . . . . . . . . . . . . . . . . . . . . . Ballistic Cannon 2 | . . . . . 1 . . . . . . . . . . . . . . . . . . . . . . . . . . . . . . . . . . . . 1 Launcher 20 | . 3 . 1 1 1 4 . 3 . . . . . . . . . . . . . 2 . . . . . . . . . . . 3 . 1 . . . . 1 . Special Weapon 2 | . . 2 . . . . . . . . . . . . . . . . . . . . . . . . . . . . . . . . . . . . . . . . Impact Weapon 10 | . . . . . 2 6 1 . . . . . . . . . 1 . . . . . . . . . . . . . . . . . . . . . . . . . Slashing Weapon 33 | . . . . . . . 1 5 . 1 . . . . . . 2 . . . . . . 1 . . . . 6 . 1 . . 2 . 1 1 . 1 . 6 5 Piercing Weapon 17 | . . . . . . . . . . . . . 1 . 1 . . . . . . . . . . . . . . . . . . . . . . . 1 . 5 9 Special Melee Weapon 14 | . 1 2 . 1 . . . 2 . 1 . . . . . . 1 . . . . 1 . 1 . . . . 4 . . . . . . . . . . . . . Unidentified Prototypes 46 | . . . . . 1 . . 8 . 1 . . . . 1 . . . . . . . . 5 1 . 3 . 4 . 3 . . 5 . 1 1 . 3 1 4 4 Corrupted Parts 3 | . . . . 3 . . . . . . . . . . . . . . . . . . . . . . . . . . . . . . . . . . . . . . System Corruption 13 | . . . . 13 . . . . . . . . . . . . . . . . . . . . . . . . . . . . . . . . . . . . . . Parts Lost 18 | . . 1 . 1 7 . 1 . . . . 1 . . . . 4 . . . . . 1 . . . . . . . . . . . . . . . 1 . . 1 Power 3 | . . 1 . . . . . . . . . . . . . . 1 . . . . . . . . . . . . . . . . . . . . . . . . 1 Propulsion 3 | . . . . 1 2 . . . . . . . . . . . . . . . . . . . . . . . . . . . . . . . . . . . . . Utility 10 | . . . . . 4 . 1 . . . . 1 . . . . 2 . . . . . 1 . . . . . . . . . . . . . . . 1 . . . Weapon 2 | . . . . . 1 . . . . . . . . . . . 1 . . . . . . . . . . . . . . . . . . . . . . . . . Highest Loss Streak 3 | . . 1 . 1 3 . 1 . . . . 1 . . . . 2 . . . . . 1 . . . . . . . . . . . . . . . 1 . . 1 To Critical Strikes 1 | . . . . . . . . . . . . . . . . . . . . . . . . . . . . . . . . . . . . . . . . . . 1 Average Slot Usage (%) 98 | . 98 98 85 99 99 100 99 99 100 99 100 98 100 100 98 99 99 100 100 100 100 99 95 98 99 100 100 100 99 100 99 100 100 99 100 99 98 94 94 96 95 98 Engine 3 | . 14 14 14 9 4 9 8 . . . . . . . . . . . . . . . . . . . . . . . . . . . . . . . . . . . Core 4 | . . . . 4 4 . . 7 7 6 7 7 7 7 6 6 6 6 6 6 6 4 5 5 5 5 5 5 10 10 10 10 10 10 10 9 9 9 1 . . . Reactor 1 | . . . . . . . . . . . . . . . . . . . . . . . . . . . . . . . . . . . . . . . 6 11 10 10 Treads 8 | . 24 28 28 28 26 27 26 . . . . . . . . . . . . . . . . . . . . . . . . . . . . . . . . . . . Flight 20 | . . . . . . . . 30 30 29 30 30 30 30 26 25 26 26 26 26 26 28 29 29 32 33 33 33 34 35 35 35 35 35 35 31 31 30 29 26 25 26 Device 7 | . . . . 3 17 18 17 5 . . . . . . 10 6 6 6 6 6 6 . . 1 5 5 5 5 5 5 5 5 5 5 5 12 12 8 9 10 15 18 Storage 6 | . 14 14 14 14 9 9 8 . . . . . . . 4 6 6 6 6 6 6 5 5 5 5 5 5 5 5 5 5 5 5 5 5 4 4 4 4 3 2 . Processor 3 | . . . . . . . . . . . . . . . . . 1 . . . . 4 5 9 11 11 11 10 5 5 5 5 5 5 5 4 4 4 4 3 14 18 Hackware 17 | . . . . . . . . 31 38 38 38 35 30 30 26 26 31 33 33 33 33 35 30 28 22 22 22 22 24 25 25 25 25 25 25 22 22 22 20 23 3 . Protection 10 | . 13 14 14 10 17 18 17 7 7 6 6 7 15 15 7 12 5 6 5 6 5 4 5 4 5 5 5 5 4 5 4 4 5 5 5 4 4 8 11 10 15 15 Energy Cannon 1 | . 11 12 . 10 1 . . . . . . . . . . . . . . . . . . . . . . . . . . . . . . . . . . . . . Ballistic Gun 4 | . 13 12 . 9 12 16 17 4 . . . . . . . . . . . . . . . . . . . . . . . . . . . . . . . . . . Launcher 2 | . . . . . . . . 1 7 7 7 7 7 7 6 6 6 6 6 6 6 3 5 5 5 5 5 5 5 5 5 5 5 4 5 3 3 . . . . . Slashing Weapon 2 | . . . . . . . . 6 7 6 7 7 1 . . . 2 6 6 6 6 5 5 4 5 5 5 5 4 5 5 5 5 4 5 4 4 4 3 3 2 . Naked Turns . | . . . . . . . . . . . . . . . . . . . . . . . . . . . . . . . . . . . . . . . . . . . Heaviest Build 102 | 13 54 54 55 61 75 78 76 20 15 18 18 21 21 21 31 31 32 28 31 28 28 28 28 35 34 34 33 36 48 48 67 67 67 79 67 76 78 79 94 84 102 100 Greatest Support 108 | 20 40 40 40 40 67 66 66 24 20 24 23 23 23 32 46 44 46 34 44 39 44 41 33 44 53 53 41 41 61 55 86 69 68 75 69 85 87 107 98 107 107 108 Greatest Overweight (x) 3 | . 1 1 1 1 1 1 3 . . . . . . . 1 1 1 . 1 . . . . 1 . 1 . . 1 . 1 . . 1 . . . . . . 1 . Average Overweight (x) . | . . 1 1 1 . 1 . . . . . . . . . . . . . . . . . . . . . . . . . . . . . . . . . . . . Largest Inventory Capacity 20 | . 20 20 20 20 20 20 20 20 5 5 5 5 5 5 10 10 10 10 10 10 10 10 10 10 10 10 10 10 15 15 20 20 20 20 20 20 20 20 20 20 20 20 Average Capacity 14 | . 11 20 20 20 20 20 19 5 5 5 5 5 5 5 8 10 10 10 10 10 10 10 10 10 10 10 10 10 14 15 15 20 20 20 20 20 20 20 20 20 18 5 Most Carried 20 | . 20 20 20 20 20 20 20 8 5 5 5 5 5 5 10 10 10 10 10 10 10 10 10 10 10 10 10 10 15 15 20 20 20 20 20 20 20 20 20 20 20 20 Average Carried 13 | . 11 19 19 19 19 20 19 4 5 4 5 5 5 5 7 9 9 9 9 9 10 9 10 9 9 10 9 10 14 15 15 20 20 19 20 19 19 19 19 19 15 4 Final Capacity 20 | 8 20 20 20 20 20 20 20 5 5 5 5 5 5 5 10 10 10 10 10 10 10 10 10 10 10 10 10 10 15 15 20 20 20 20 20 20 20 20 20 20 20 5 Final Carried 20 | 6 20 20 19 20 20 20 9 5 5 5 5 5 5 5 10 10 9 10 10 10 10 10 10 10 10 10 10 10 15 15 20 20 20 20 20 20 20 20 20 20 20 4 Class Distribution -------------------- 26% | Mutant 24% | Wizard-Sprinter 18% | Hacker-Sprinter 15% | Wizard-Scout 5% | Scavenger-Mutant 5% | Alien-Sprinter Dominant Class ---------------- Mutant | -10/Materials Mutant | -10/Mines Mutant | -10/Exiles Mutant | -9/Mines Scavenger-Mutant | -8/Materials Mutant | -8/Garrison Mutant | -8/Materials Hacker-Sprinter | -7/Factory Hacker-Sprinter | -7/Waste Hacker-Sprinter | -7/Factory Hacker-Sprinter | -7/Lower Caves Hacker-Sprinter | -7/Lower Caves Hacker-Sprinter | -7/Zion Hacker-Sprinter | -6/Proximity Caves Hacker-Sprinter | -6/Factory Hacker-Sprinter | -6/Waste Wizard-Sprinter | -6/Factory Wizard-Sprinter | -6/Lower Caves Wizard-Sprinter | -6/Lower Caves Wizard-Sprinter | -6/Data Miner Wizard-Sprinter | -5/Proximity Caves Wizard-Sprinter | -5/Factory Wizard-Sprinter | -5/Waste Wizard-Scout | -5/Factory Wizard-Sprinter | -5/Upper Caves Wizard-Sprinter | -5/Upper Caves Wizard-Sprinter | -5/Zhirov Wizard-Sprinter | -4/Proximity Caves Wizard-Scout | -4/Factory Wizard-Scout | -4/Waste Wizard-Scout | -4/Factory Wizard-Sprinter | -4/Upper Caves Wizard-Sprinter | -4/Upper Caves Wizard-Sprinter | -4/Warlord Wizard-Sprinter | -3/Proximity Caves Wizard-Scout | -3/Research Wizard-Scout | -3/Quarantine Wizard-Sprinter | -3/Section 7 Wizard-Sprinter | -2/Research Wizard-Scout | -1/Access Alien-Gladiator | -1/Command Alien-Sprinter | -1/Access_0 Resources | -11 -10 -10 -10 -9 -8 -8 -8 -7 -7 -7 -7 -7 -7 -6 -6 -6 -6 -6 -6 -6 -5 -5 -5 -5 -5 -5 -5 -4 -4 -4 -4 -4 -4 -4 -3 -3 -3 -3 -2 -1 -1 -1 ----------- Run | Jun Mat Min Exi Min Mat Gar Mat Fac Was Fac Low Low Zio Pro Fac Was Fac Low Low Dat Pro Fac Was Fac Upp Upp Zhi Pro Fac Was Fac Upp Upp War Pro Res Qua Sec Res Acc Com Ac0 Matter Collected 14989 | 179 481 217 82 265 1102 499 970 719 183 266 321 264 48 250 605 70 666 438 208 . 41 326 270 225 191 132 . 87 632 . 938 300 150 845 258 327 44 131 830 396 638 395 Remotely 10 | . . . . . . . . . . . . . . . . . . . . . . . . . . . . . . . . . . . . . . . 10 . . . Salvage Created 22499 | . 941 223 . 296 1806 716 1300 646 49 291 143 74 . 122 1366 62 993 399 121 28 8 437 144 449 70 . . . 1330 . 1098 288 93 564 269 537 44 153 683 519 1310 4927 Parts 1176 | . 51 13 . 20 95 52 83 47 7 19 1 3 . 5 67 3 57 28 11 4 . 19 8 28 2 . . . 60 . 47 2 1 24 6 28 1 2 23 17 35 307 Haulers Intercepted 20 | . 2 . . . 3 . 2 3 . 2 . . . . 1 . 2 . . . . 1 . . . . . . . . 1 . . . . . . . 2 1 . . Recyclers Shooed 10 | . 3 . . 1 . . 2 1 . . . . . . . . 1 . . . . . . . . . . . 1 . 1 . . . . . . . . . . . Parts Field Recycled . | . . . . . . . . . . . . . . . . . . . . . . . . . . . . . . . . . . . . . . . . . . . Retrieved Matter . | . . . . . . . . . . . . . . . . . . . . . . . . . . . . . . . . . . . . . . . . . . . Parts Self-Destructed 62 | . . . . . . . . . . . 8 9 . 6 . . . 15 8 . . . . . 5 . . . . . . 4 1 . 6 . . . . . . . Prevented 3 | . . . . . . . . . . . . . . . . . . . . . . . . . 3 . . . . . . . . . . . . . . . . . Kills | -11 -10 -10 -10 -9 -8 -8 -8 -7 -7 -7 -7 -7 -7 -6 -6 -6 -6 -6 -6 -6 -5 -5 -5 -5 -5 -5 -5 -4 -4 -4 -4 -4 -4 -4 -3 -3 -3 -3 -2 -1 -1 -1 ------- Run | Jun Mat Min Exi Min Mat Gar Mat Fac Was Fac Low Low Zio Pro Fac Was Fac Low Low Dat Pro Fac Was Fac Upp Upp Zhi Pro Fac Was Fac Upp Upp War Pro Res Qua Sec Res Acc Com Ac0 Combat Hostiles Destroyed 319 | . 17 9 . 6 32 24 30 8 . 1 8 3 . 5 11 . 20 12 6 . 1 5 . . 3 . . . 10 . 13 6 4 17 7 1 . . 1 . 8 51 Melee 64 | . . . . . 1 . 1 1 . . . . . 1 . . . . . . . . . . . . . . . . . . . . . 1 . . 1 . 8 50 Guns 87 | . 9 6 . 2 26 15 29 . . . . . . . . . . . . . . . . . . . . . . . . . . . . . . . . . . . Cannons 13 | . 7 3 . . 3 . . . . . . . . . . . . . . . . . . . . . . . . . . . . . . . . . . . . . AOE 153 | . . . . 4 2 9 . 7 . 1 8 3 . 4 11 . 20 12 6 . 1 5 . . 3 . . . 10 . 13 6 4 17 7 . . . . . . . Classes Destroyed 24 | . 7 1 . . 5 . 2 1 . . 2 . . 1 . . 2 1 1 . . . . . . . . . . . . . . 1 . . . . . . . . Worker 23 | . 3 . . . 4 . 2 1 . . . . . . 4 . 3 . . . . 2 . . . . . . . . 2 . . . . . . . 2 . . . Builder 26 | . . . . . 1 . . 1 . . . . . . 10 . 3 . . . . . . 3 . . . . 2 . 2 . . . . 2 . . 1 1 . . Tunneler 1 | . . . . . . . 1 . . . . . . . . . . . . . . . . . . . . . . . . . . . . . . . . . . . Hauler 20 | . 2 . . . 3 . 2 3 . 2 . . . . 1 . 2 . . . . 1 . . . . . . . . 1 . . . . . . . 2 1 . . Recycler 48 | . 3 1 . 3 1 . . 3 . 1 . . . . 6 . 3 . . . . 2 . 3 . . . . 7 . 4 . . . . 3 . 1 2 3 2 . Minesweeper 3 | . . . . . . . . . . . . . . . . . . . 1 . . . . . 1 . . . . . . . . . 1 . . . . . . . Mechanic 5 | . . . . . . . 2 . . . . . . . . . . . . . . . . . . . . . . . 1 . . 2 . . . . . . . . Operator 6 | . 1 . . . 2 . 1 1 . . . . . . . . 1 . . . . . . . . . . . . . . . . . . . . . . . . . Drone 2 | . . . . . . . . . . . . . . 1 . . . . . . . . . . . . . . . . . . . . . 1 . . . . . . Watcher 48 | . 2 . . . 3 1 . 4 . 3 . . . . 4 . 2 . . . . 2 . 2 . . . . 9 . 6 . . . . 2 1 . 3 . 4 . Swarmer 105 | . 6 6 . 4 6 11 8 4 . . . 2 . 2 3 . 14 8 4 . 1 5 . . 2 . . . 10 . 5 . . 3 . . . . . . 1 . Cutter 4 | . . . . . . . . . . . . . . . . . 3 . . . . . . . . . . . . . . . . . . . . . . . 1 . Saboteur 3 | . . . . . . . . . . . . . . . . . 1 . . . . . . . . . . . . . . . . 2 . . . . . . . . Grunt 89 | . 11 2 . 2 12 7 12 2 . 1 3 . . . 7 . 1 . 1 . . . . . 1 . . . . . 7 4 4 8 4 . . . . . . . Brawler 5 | . . . . . 2 . 1 . . . . . . . . . . . . . . . . . . . . . . . . . . 1 1 . . . . . . . Duelist 2 | . . . . . . . . . . . . . . . . . . . . . . . . . . . . . . . 1 1 . . . . . . . . . . Protector 1 | . . . . . . . . . . . . . . . . . . . . . . . . . . . . . . . . . . 1 . . . . . . . . Sentry 20 | . . . . . 8 6 6 . . . . . . . . . . . . . . . . . . . . . . . . . . . . . . . . . . . Demolisher 1 | . . 1 . . . . . . . . . . . . . . . . . . . . . . . . . . . . . . . . . . . . . . . . Specialist 7 | . . . . . 3 . 2 . . . . . . . . . . . . . . . . . . . . . . . . . . 2 . . . . . . . . Hunter 16 | . . . . . 1 . 1 . . . . 1 . 2 1 . 1 4 1 . . . . . . . . . . . . 1 . . 2 . . . . . 1 . Programmer 3 | . . . . . . . . 2 . . . . . . . . . . . . . . . . . . . . . . . . . . . . . . 1 . . . M Guard 2 | . . . . . . . . . . . . . . . . . . . . . . . . . . . . . . . . . . . . . . . . . 2 . Enhanced Grunt 31 | . . . . . . . . . . . . . . . . . . . . . . . . . . . . . . . . . . . . . . . . . . 31 Enhanced Sentry 5 | . . . . . . . . . . . . . . . . . . . . . . . . . . . . . . . . . . . . . . . . . . 5 Enhanced Hunter 8 | . . . . . . . . . . . . . . . . . . . . . . . . . . . . . . . . . . . . . . . . . . 8 Combat Programmer 1 | . . . . . . . . . . . . . . . . . . . . . . . . . . . . . . . . . . . . . . . . . 1 . Decomposer 4 | . . . . . . . . . . . . . . 1 . . . 3 . . . . . . . . . . . . . . . . . . . . . . . . Samaritan 3 | . . . . . . . . . . . . . . . . . . 3 . . . . . . . . . . . . . . . . . . . . . . . . Surgeon 1 | . . . . . . . . . . . . . . . . . 1 . . . . . . . . . . . . . . . . . . . . . . . . . Thug 3 | . . . . . . . . . . . 3 . . . . . . . . . . . . . . . . . . . . . . . . . . . . . . . Butcher 1 | . . . . . . . . . . . 1 . . . . . . . . . . . . . . . . . . . . . . . . . . . . . . . Martyr 4 | . . . . . . . . . 1 . . . . . . 1 . . . . . . 2 . . . . . . . . . . . . . . . . . . . Mutant 1 | . . . . . . . . . . . 1 . . . . . . . . . . . . . . . . . . . . . . . . . . . . . . . Best Kill Streak 16 | . 7 3 . 4 9 5 3 4 . 3 5 2 . 2 16 . 6 8 4 1 1 7 . 3 2 . . . 7 . 11 3 4 6 6 2 1 1 5 2 3 7 Combat Bots Only 8 | . 6 3 . 4 5 5 3 4 . 1 5 2 . 2 8 . 4 8 4 . 1 5 . . 2 . . . 5 . 8 3 4 5 4 1 . . 1 . 3 7 Max Kills in Single Turn 7 | . 2 1 . 4 2 4 2 4 1 2 2 2 . 2 4 1 3 4 3 1 1 7 1 1 2 . . . 5 . 2 2 1 3 1 1 1 1 1 1 1 1 Gunslinging 1 | . . . . . 1 1 . . . . . . . . . . . . . . . . . . . . . . . . . . . . . . . . . . . . Exploded 5 | . . . . 4 2 4 . 4 . 1 2 2 . 2 3 . 3 4 3 . 1 5 . . 2 . . . 4 . 2 2 1 3 1 . . . . . . . Melee 1 | . . . . . 1 . 1 1 . . . . . 1 . . . . . . . . . . . . . . . . . . . . . 1 . . 1 . 1 1 Uniques/NPCs Destroyed 10 | . . . . . . . . . . . . . . . . . . . . 1 . . . . . . . . . . . . . . . . . . . . 2 7 Data Miner (-6/Data Miner) MAIN.C Shell (-1/Command) MAIN.C (-1/Command) A6 (-1/Access_0) A3 (-1/Access_0) Architect (-1/Access_0) A2 (-1/Access_0) A8 (-1/Access_0) A5 (-1/Access_0) A4 (-1/Access_0) Combat | -11 -10 -10 -10 -9 -8 -8 -8 -7 -7 -7 -7 -7 -7 -6 -6 -6 -6 -6 -6 -6 -5 -5 -5 -5 -5 -5 -5 -4 -4 -4 -4 -4 -4 -4 -3 -3 -3 -3 -2 -1 -1 -1 -------- Run | Jun Mat Min Exi Min Mat Gar Mat Fac Was Fac Low Low Zio Pro Fac Was Fac Low Low Dat Pro Fac Was Fac Upp Upp Zhi Pro Fac Was Fac Upp Upp War Pro Res Qua Sec Res Acc Com Ac0 Damage Taken 10280 | . 465 565 . 291 1440 414 811 119 . . . 14 . . 12 . 650 93 136 45 21 42 34 . 20 75 . . . . 83 . . 66 73 138 22 108 192 301 1075 2975 Core 965 | . 85 29 . 64 127 13 67 56 . . . . . . . . 32 16 30 . . . . . . 19 . . . . 18 . . . 15 . . 20 34 75 17 248 Absorbed by Shields 1826 | . . . . . 408 189 292 . . . . . . . . . . . . . . . . . . . . . . . . . . . . . . . . . . 937 Redirected to Shielding 441 | . . . . . . . . . . . . . . . . . . . . . . . . . . . . . . . . . . . . . . . . . 86 355 Ignored by Resistances 12 | . . . . . . . . 12 . . . . . . . . . . . . . . . . . . . . . . . . . . . . . . . . . . Regen/Repaired (Parts) 4449 | . 128 . . . 72 . 207 . . 17 . . . . . . 107 . . . . 317 . . . . . . 68 . . . . 16 . 43 . 64 90 86 1600 1634 Core Remaining (%) 82 | 100 . . . 28 . . 62 . . . . . . 92 . . . . . . 90 . . . . . . 98 . . . . . . 97 . . 88 98 . . 72 Volleys Fired 602 | . 64 22 . 10 148 45 83 8 4 2 14 8 . 10 19 . 25 11 5 . 1 4 8 2 5 3 . . 6 . 27 10 6 28 12 3 1 . . . 1 7 Largest 2 | . 2 2 . 2 2 2 2 1 1 1 1 1 . 1 1 . 1 1 1 . 1 1 1 1 1 1 . . 1 . 1 1 1 1 1 1 1 . . . 1 1 Hottest 128 | . 88 100 . 88 128 51 56 80 80 80 80 80 . 80 80 . 80 80 80 . 80 80 80 80 80 80 . . 80 . 80 80 80 80 80 80 80 . . . 49 94 Shots Fired 906 | . 118 45 . 19 252 78 164 8 4 2 14 8 . 10 19 . 25 11 5 . 1 4 8 2 5 3 . . 6 . 27 10 6 28 12 3 1 . . . 1 7 Gun 555 | . 72 20 . 10 218 71 164 . . . . . . . . . . . . . . . . . . . . . . . . . . . . . . . . . . . Cannon 112 | . 43 22 . 8 32 . . . . . . . . . . . . . . . . . . . . . . . . . . . . . . . . . . . . 7 Launcher 236 | . 3 . . 1 2 7 . 8 4 2 14 8 . 10 19 . 25 11 5 . 1 4 8 2 5 3 . . 6 . 27 10 6 28 12 3 1 . . . 1 . Special 3 | . . 3 . . . . . . . . . . . . . . . . . . . . . . . . . . . . . . . . . . . . . . . . Kinetic 508 | . 53 20 . 8 192 71 164 . . . . . . . . . . . . . . . . . . . . . . . . . . . . . . . . . . . Thermal 155 | . 62 25 . 10 58 . . . . . . . . . . . . . . . . . . . . . . . . . . . . . . . . . . . . . Explosive 235 | . 3 . . 1 2 7 . 8 4 2 14 8 . 10 19 . 25 11 5 . 1 4 8 2 5 3 . . 6 . 27 10 6 27 12 3 1 . . . 1 . Electromagnetic 7 | . . . . . . . . . . . . . . . . . . . . . . . . . . . . . . . . . . . . . . . . . . 7 Entropic 1 | . . . . . . . . . . . . . . . . . . . . . . . . . . . . . . . . . . 1 . . . . . . . . Robot Hit Streak 25 | . 12 9 . 13 25 22 11 . 7 8 . . . . . . 10 . 12 . . . 18 . . . . . . . 20 . . . . 22 . . . . . 23 Robot Miss Streak 7 | . 3 3 . 2 4 3 7 . . . . . . . . . . . . . . . . . . . . . . . . . . . . . . . . . . 3 Penetration Max 1 | . . . . . 1 . 1 . . . . . . . . . . . . . . . . . . . . . . . . . . . . . . . . . . . Secondary Targets 6 | . . . . . 1 3 2 . . . . . . . . . . . . . . . . . . . . . . . . . . . . . . . . . . . Max Gunslinging Chain 1 | . . . . . 1 1 1 . . . . . . . . . . . . . . . . . . . . . . . . . . . . . . . . . . . Shots Hit Robots 934 | . 63 22 4 13 153 53 126 31 7 11 . 2 . 2 19 1 21 7 3 1 . 8 10 12 2 . . . 36 . 16 . . 2 2 10 1 1 15 6 56 218 Core Hits 881 | . 38 11 . 9 74 47 109 17 3 7 22 6 . 10 49 1 48 17 10 1 . 14 4 8 7 4 . . 23 . 54 14 15 93 21 9 1 . 5 2 21 107 Critical Kills 6 | . 1 . . . 1 1 3 . . . . . . . . . . . . . . . . . . . . . . . . . . . . . . . . . . . Critical Parts Destroyed 4 | . . . . . 2 . 1 . . . . . . . . . 1 . . . . . . . . . . . . . . . . . . . . . . . . . Critical Strikes 51 | . 1 . . . 6 1 4 4 . 2 . . . . 1 . 1 1 . . . . . . . . . . 3 . . . . . . . . . . . 5 22 Burn 3 | . . . . . 3 . . . . . . . . . . . . . . . . . . . . . . . . . . . . . . . . . . . . . Meltdown 1 | . 1 . . . . . . . . . . . . . . . . . . . . . . . . . . . . . . . . . . . . . . . . . Destroy 8 | . . . . . 3 1 4 . . . . . . . . . . . . . . . . . . . . . . . . . . . . . . . . . . . Smash 1 | . . . . . . . . . . . . . . . . . 1 . . . . . . . . . . . . . . . . . . . . . . . . . Sever 13 | . . . . . . . . 4 . 2 . . . . . . . 1 . . . . . . . . . . 3 . . . . . . . . . . . 3 . Impale 25 | . . . . . . . . . . . . . . . 1 . . . . . . . . . . . . . . . . . . . . . . . . . 2 22 Melee Attacks 1098 | . . . 4 1 4 14 1 75 5 27 5 6 . 5 47 1 91 8 22 18 1 52 4 26 7 1 . 1 85 . 48 2 2 53 3 44 9 14 37 27 100 248 Impact 52 | . . . . . 4 14 1 . . . . . . . . . 33 . . . . . . . . . . . . . . . . . . . . . . . . . Slashing 705 | . . . . . . . . 73 5 27 5 6 . . . . 35 8 22 18 1 51 4 26 7 1 . 1 85 . 48 2 2 53 3 44 9 14 37 27 80 11 Piercing 333 | . . . . . . . . . . . . . . 5 47 1 23 . . . . . . . . . . . . . . . . . . . . . . . 20 237 Sneak Attacks 154 | . . . 4 1 . . . 15 5 3 . . . 2 14 1 10 7 1 1 . 3 4 9 1 . . . 16 . 8 . . 2 . 5 1 1 9 5 2 24 Combat Hostiles 28 | . . . . . . . . . . . . . . 1 . . . . . . . . . 1 . . . . . . . . . . . 1 . . 1 . . 24 Follow-up Attacks 29 | . . . . . . . . . . . . . . . . . . . . . . . . . . . . . . . . . . . . . . . . . 3 26 Damage Inflicted 81289 | . 1049 374 . 360 3442 1509 2488 2629 1358 675 1475 758 . 752 3858 76 3957 1649 637 73 83 1680 1182 927 399 301 . . 3839 . 4731 1241 664 5869 1254 1089 141 168 2388 993 5906 21315 Guns 6905 | . 530 164 . 86 2737 955 2433 . . . . . . . . . . . . . . . . . . . . . . . . . . . . . . . . . . . Cannons 1209 | . 469 210 . 103 325 . . . . . . . . . . . . . . . . . . . . . . . . . . . . . . . . . . . . 102 Explosions 28785 | . 37 . . 145 303 554 . 823 984 180 1475 664 . 600 2476 . 2705 1111 534 . 83 1147 844 28 269 301 . . 982 . 3569 1241 664 5658 1127 281 . . . . . . Melee 44219 | . . . . . . . . 1806 374 495 . 94 . 152 1382 76 1252 538 103 73 . 533 338 899 130 . . . 2857 . 1162 . . 211 127 808 141 168 2388 993 5906 21213 Ramming 171 | . 13 . . 26 77 . 55 . . . . . . . . . . . . . . . . . . . . . . . . . . . . . . . . . . . Kinetic 6325 | . 351 164 . 64 2358 955 2433 . . . . . . . . . . . . . . . . . . . . . . . . . . . . . . . . . . . Thermal 2419 | . 648 210 . 125 704 . . 220 . . . . . . . . . . . . . 512 . . . . . . . . . . . . . . . . . . . . Explosive 27843 | . 37 . . 145 303 554 . 603 984 180 1475 664 . 600 2476 . 2623 1111 534 . 83 635 844 28 269 301 . . 982 . 3569 1241 664 5530 1127 281 . . . . . . Electromagnetic 184 | . . . . . . . . . . . . . . . . . 82 . . . . . . . . . . . . . . . . . . . . . . . . 102 Impact 128 | . . . . . . . . . . . . . . . . . 128 . . . . . . . . . . . . . . . . . . . . . . . . . Slashing 19649 | . . . . . . . . 1806 374 495 . 94 . . . . 592 538 103 73 . 533 338 899 130 . . . 2857 . 1162 . . 211 127 808 141 168 2388 993 4433 386 Piercing 24442 | . . . . . . . . . . . . . . 152 1382 76 532 . . . . . . . . . . . . . . . . . . . . . . . 1473 20827 Entropic 128 | . . . . . . . . . . . . . . . . . . . . . . . . . . . . . . . . . . 128 . . . . . . . . Highest Corruption 19 | . 3 5 5 19 . 1 1 2 1 1 1 1 1 . . . 8 8 8 8 8 . . . . . . . . . . . . . . . 1 2 . . . . Average Corruption 3 | . 2 4 5 9 . 1 1 1 1 1 1 1 1 . . . 6 8 8 8 8 . . . . . . . . . . . . . . . 1 1 . . . . Corruption Purged 1 | . . . . . . . . 1 . . . . . . . . . . . . . . . . . . . . . . . . . . . . . . . . . . Corruption Blocked . | . . . . . . . . . . . . . . . . . . . . . . . . . . . . . . . . . . . . . . . . . . . Effects 284 | . 29 53 19 59 . 3 22 9 6 9 1 5 . . . . 29 12 18 3 4 . . . . . . . . . . . . . . . 1 2 . . . . Message Errors 71 | . 5 8 7 19 . . 3 2 3 4 1 1 . . . . 7 3 4 1 2 . . . . . . . . . . . . . . . 1 . . . . . Matter Fused 74 | . 8 18 5 14 . . 9 1 2 3 . . . . . . 4 4 5 . 1 . . . . . . . . . . . . . . . . . . . . . Heat Flow Errors 30 | . 5 3 2 7 . 2 2 2 . . . . . . . . 4 1 2 . . . . . . . . . . . . . . . . . . . . . . . Energy Discharges 32 | . 4 6 . 7 . . 3 2 . . . 2 . . . . 6 1 1 . . . . . . . . . . . . . . . . . . . . . . . Parts Rejected 1 | . . . . . . . 1 . . . . . . . . . . . . . . . . . . . . . . . . . . . . . . . . . . . Parts Fused 6 | . . 2 1 1 . . . . . . . . . . . . . . 2 . . . . . . . . . . . . . . . . . . . . . . . Data Loss (minor) 40 | . 3 8 3 6 . . 1 1 . 2 . 2 . . . . 5 2 3 1 1 . . . . . . . . . . . . . . . . 2 . . . . Data Loss (major) 12 | . . 3 1 2 . . . . 1 . . . . . . . 2 1 1 1 . . . . . . . . . . . . . . . . . . . . . . Misfires 7 | . 2 4 . . . 1 . . . . . . . . . . . . . . . . . . . . . . . . . . . . . . . . . . . . Alerts 11 | . 2 1 . 3 . . 3 1 . . . . . . . . 1 . . . . . . . . . . . . . . . . . . . . . . . . . Overload Shots . | . . . . . . . . . . . . . . . . . . . . . . . . . . . . . . . . . . . . . . . . . . . Overflow Damage 7868 | . 1 1 . . 11 30 . 607 109 45 12 112 . 32 496 . 269 206 35 . 18 194 12 194 64 . . . 918 . 381 63 . 130 64 181 . 98 1051 294 837 1403 Projectiles 2 | . 1 1 . . . . . . . . . . . . . . . . . . . . . . . . . . . . . . . . . . . . . . . . Explosions 1146 | . . . . . 11 30 . 167 . . 12 59 . 32 113 . 99 43 35 . 18 114 . . 25 . . . 33 . 254 63 . 29 . 9 . . . . . . Melee 6720 | . . . . . . . . 440 109 45 . 53 . . 383 . 170 163 . . . 80 12 194 39 . . . 885 . 127 . . 101 64 172 . 98 1051 294 837 1403 Knockbacks 1 | . . . . . 1 . . . . . . . . . . . . . . . . . . . . . . . . . . . . . . . . . . . . . Impact 1 | . . . . . 1 . . . . . . . . . . . . . . . . . . . . . . . . . . . . . . . . . . . . . Kinetic . | . . . . . . . . . . . . . . . . . . . . . . . . . . . . . . . . . . . . . . . . . . . Secondary . | . . . . . . . . . . . . . . . . . . . . . . . . . . . . . . . . . . . . . . . . . . . Self-Inflicted Damage . | . . . . . . . . . . . . . . . . . . . . . . . . . . . . . . . . . . . . . . . . . . . Shots . | . . . . . . . . . . . . . . . . . . . . . . . . . . . . . . . . . . . . . . . . . . . Rammed 22 | . 4 . . 3 10 . 5 . . . . . . . . . . . . . . . . . . . . . . . . . . . . . . . . . . . Targets Rammed 25 | . 4 . . 4 11 . 6 . . . . . . . . . . . . . . . . . . . . . . . . . . . . . . . . . . . Kicked . | . . . . . . . . . . . . . . . . . . . . . . . . . . . . . . . . . . . . . . . . . . . Crushed 3 | . . . . 1 1 . 1 . . . . . . . . . . . . . . . . . . . . . . . . . . . . . . . . . . . Highest Temperature 277 | . 198 228 257 277 143 146 198 197 91 46 72 136 . 116 123 73 255 194 267 31 34 141 110 47 184 241 . . 128 169 112 32 34 32 32 44 47 48 . 111 89 97 Average Temperature 40 | . 55 83 113 100 39 69 78 34 36 19 30 59 . 38 44 40 52 48 94 14 15 50 50 18 39 70 . . 28 107 28 13 13 13 15 3 20 15 . 60 26 37 Received Heat Transfer 1585 | . 213 63 . 66 474 146 342 6 . . . . . . . . . . 12 . . 18 . . 9 36 . . . . 9 . . . 6 9 . . . . . 176 Effects 1 | . . 1 . . . . . . . . . . . . . . . . . . . . . . . . . . . . . . . . . . . . . . . . Energy Bleed 1 | . . 1 . . . . . . . . . . . . . . . . . . . . . . . . . . . . . . . . . . . . . . . . Siege Activations . | . . . . . . . . . . . . . . . . . . . . . . . . . . . . . . . . . . . . . . . . . . . Robots Corrupted 1 | . . . . . . . . . . . . . . . . . . . . . . . . . . . . . . . . . . . . . . . . . . 1 Combat Hostiles 1 | . . . . . . . . . . . . . . . . . . . . . . . . . . . . . . . . . . . . . . . . . . 1 Parts Fried 7 | . . . . . . . . . . . . . . . . . 5 . . . . . . . . . . . . . . . . . . . . . . . . 2 Impact Corruptions 5 | . . . . . . . . . . . . . . . . . 5 . . . . . . . . . . . . . . . . . . . . . . . . . Robots Melted 1 | . 1 . . . . . . . . . . . . . . . . . . . . . . . . . . . . . . . . . . . . . . . . . Combat Hostiles 1 | . 1 . . . . . . . . . . . . . . . . . . . . . . . . . . . . . . . . . . . . . . . . . Parts Melted 6 | . 2 . . . 4 . . . . . . . . . . . . . . . . . . . . . . . . . . . . . . . . . . . . . Heat Transferred 3675 | . 1214 370 . 222 1369 . . 100 . . . . . . . . . . . . . 400 . . . . . . . . . . . . . . . . . . . . Parts Sabotaged . | . . . . . . . . . . . . . . . . . . . . . . . . . . . . . . . . . . . . . . . . . . . Parts Stolen . | . . . . . . . . . . . . . . . . . . . . . . . . . . . . . . . . . . . . . . . . . . . Parts Stripped . | . . . . . . . . . . . . . . . . . . . . . . . . . . . . . . . . . . . . . . . . . . . Power Chain Reactions . | . . . . . . . . . . . . . . . . . . . . . . . . . . . . . . . . . . . . . . . . . . . Missiles Intercepted . | . . . . . . . . . . . . . . . . . . . . . . . . . . . . . . . . . . . . . . . . . . . Alert | -11 -10 -10 -10 -9 -8 -8 -8 -7 -7 -7 -7 -7 -7 -6 -6 -6 -6 -6 -6 -6 -5 -5 -5 -5 -5 -5 -5 -4 -4 -4 -4 -4 -4 -4 -3 -3 -3 -3 -2 -1 -1 -1 ------- Run | Jun Mat Min Exi Min Mat Gar Mat Fac Was Fac Low Low Zio Pro Fac Was Fac Low Low Dat Pro Fac Was Fac Upp Upp Zhi Pro Fac Was Fac Upp Upp War Pro Res Qua Sec Res Acc Com Ac0 Peak Influence 1901 | . 294 103 . 92 474 1338 651 716 278 495 . . . . 513 218 919 . . . . 809 259 373 . . . . 266 96 692 . . . . 214 1901 1823 1269 787 214 . Initial 1100 | . . 32 . . . 285 651 289 238 . . . . . . 179 . . . . . 12 189 30 . . . . . 81 67 . . . . . . 1100 1100 688 16 . Average 297 | . 110 29 . 10 155 776 363 443 136 235 . . . . 225 106 394 . . . . 447 209 159 . . . . 81 82 383 . . . . 72 1700 1729 1178 389 98 . Maximum Alert Level 5 | . 1 . . . 2 4 2 3 1 2 . . . . 2 1 3 . . . . 3 1 1 . . . . 1 . 2 . . . . 1 5 5 4 3 2 . Low Security (%) 48 | . 90 100 . 100 74 . 5 . 61 35 . . . . 49 61 12 . . . . 31 29 65 . . . . 86 100 7 . . . . 99 . . . 38 25 . Level 1 24 | . 9 . . . 9 10 68 42 38 46 . . . . 30 38 48 . . . . 3 70 34 . . . . 13 . 54 . . . . . . . . 10 44 . Level 2 18 | . . . . . 16 31 26 50 . 18 . . . . 20 . 31 . . . . 49 . . . . . . . . 37 . . . . . . . . 22 30 . Level 3 4 | . . . . . . 36 . 6 . . . . . . . . 6 . . . . 15 . . . . . . . . . . . . . . . . 11 27 . . Level 4 3 | . . . . . . 21 . . . . . . . . . . . . . . . . . . . . . . . . . . . . . . . . 88 . . . Level 5 . | . . . . . . . . . . . . . . . . . . . . . . . . . . . . . . . . . . . . . . . . . . . High Security . | . . . . . . . . . . . . . . . . . . . . . . . . . . . . . . . . . . . . . . . . . . . Max Security 1 | . . . . . . . . . . . . . . . . . . . . . . . . . . . . . . . . . . . . . 99 99 . . . . Squads Dispatched 117 | . 4 . . . 6 . 6 10 . 6 . . . . 5 . 13 . . . . 9 . 4 . . . . 8 . 13 . . . . 4 12 6 2 4 5 . Investigation 33 | . 3 . . . 3 . . 4 . 4 . . . . . . 3 . . . . 2 . . . . . . 2 . 6 . . . . 1 . . 2 1 2 . Extermination 21 | . . . . . . . . 3 . . . . . . 2 . 3 . . . . 2 . 1 . . . . 4 . 2 . . . . 1 . . . 2 1 . Reinforcement 31 | . 1 . . . 3 . 2 1 . 2 . . . . 3 . 6 . . . . 2 . 3 . . . . 2 . 1 . . . . 2 . . . 1 2 . Assault 24 | . . . . . . . . 2 . . . . . . . . 1 . . . . 3 . . . . . . . . . . . . . . 12 6 . . . . Garrison 8 | . . . . . . . 4 . . . . . . . . . . . . . . . . . . . . . . . 4 . . . . . . . . . . . Intercept . | . . . . . . . . . . . . . . . . . . . . . . . . . . . . . . . . . . . . . . . . . . . Searches Triggered 1 | . . . . . . . . . . . . . . . . . . . . . . . . . . . . . . . . . . . . . . . . 1 . . Construction Impeded 3 | . . . . . . . . . . 1 . . . . 1 . . . . . . . . 1 . . . . . . . . . . . . . . . . . . Haulers Reinforced 3 | . . . . . . . . . . . . . . . 1 . . . . . . 1 . . . . . . . . . . . . . . . . . 1 . . Active Scanning Responses . | . . . . . . . . . . . . . . . . . . . . . . . . . . . . . . . . . . . . . . . . . . . Cargo Convoy Interrupts 7 | . . . . . . . . 1 . 1 . . . . 1 . 1 . . . . . . 1 . . . . 1 . 1 . . . . . . . . . . . Stealth | -11 -10 -10 -10 -9 -8 -8 -8 -7 -7 -7 -7 -7 -7 -6 -6 -6 -6 -6 -6 -6 -5 -5 -5 -5 -5 -5 -5 -4 -4 -4 -4 -4 -4 -4 -3 -3 -3 -3 -2 -1 -1 -1 --------- Run | Jun Mat Min Exi Min Mat Gar Mat Fac Was Fac Low Low Zio Pro Fac Was Fac Low Low Dat Pro Fac Was Fac Upp Upp Zhi Pro Fac Was Fac Upp Upp War Pro Res Qua Sec Res Acc Com Ac0 Distress Signals 43 | . 2 . . . 3 . 8 . . . . . . . . . 2 . . . . 2 . . . . . . 2 . . . . . . 1 . 2 6 2 13 . Communications Jammed 6 | . . . . . . . . . . . . . . . . . . . . . . . . . . . . . . . 6 . . . . . . . . . . . Distress Signals 6 | . . . . . . . . . . . . . . . . . . . . . . . . . . . . . . . 6 . . . . . . . . . . . Times Spotted 643 | . 22 8 . 6 45 27 43 25 6 11 5 4 . 5 17 1 25 9 10 4 3 13 3 11 2 9 . . 20 3 24 12 5 53 6 18 14 19 23 24 28 80 Peak Tracking Total 29 | . 6 3 . 4 8 5 4 6 6 2 5 3 . 3 7 1 8 4 8 4 2 6 2 7 1 8 . . 4 3 8 5 5 13 4 4 11 11 9 8 7 29 Tactical Retreats 87 | . 1 . . . 1 2 . 5 . 1 . . . . 2 . 9 . 3 . . 7 . . 3 2 . . 3 . 4 6 1 1 . 5 4 1 7 6 1 12 Traps | -11 -10 -10 -10 -9 -8 -8 -8 -7 -7 -7 -7 -7 -7 -6 -6 -6 -6 -6 -6 -6 -5 -5 -5 -5 -5 -5 -5 -4 -4 -4 -4 -4 -4 -4 -3 -3 -3 -3 -2 -1 -1 -1 ------- Run | Jun Mat Min Exi Min Mat Gar Mat Fac Was Fac Low Low Zio Pro Fac Was Fac Low Low Dat Pro Fac Was Fac Upp Upp Zhi Pro Fac Was Fac Upp Upp War Pro Res Qua Sec Res Acc Com Ac0 Traps Triggered 32 | . 3 . . . 2 6 . 2 . 2 . . . . 1 . 4 . 1 . . 2 . . . . . . 3 . 1 . . . . . 2 . . 1 2 . Indirectly . | . . . . . . . . . . . . . . . . . . . . . . . . . . . . . . . . . . . . . . . . . . . Trap Hack Attempts 72 | . 5 . . . . . . 26 . 12 . . . . . . 6 . . . . . . 12 . . . . 11 . . . . . . . . . . . . . Triggered 3 | . . . . . . . . . . . . . . . . . . . . . . . . 1 . . . . 2 . . . . . . . . . . . . . Disarmed 4 | . . . . . . . . 1 . . . . . . . . 2 . . . . . . . . . . . 1 . . . . . . . . . . . . . Reprogrammed 21 | . 1 . . . . . . 5 . 4 . . . . . . 1 . . . . . . 5 . . . . 5 . . . . . . . . . . . . . Reused 18 | . . . . . . . . 3 . 2 . . . . 3 . 1 . . . . . . 3 . . . . 3 . 3 . . . . . . . . . . . Traps Extracted 26 | . . . . 5 . . . 6 . 5 . . . . . . . . 4 . . . . 3 . . . . 3 . . . . . . . . . . . . . Installed 20 | . . . . . . . . 4 . 3 . . . . 3 . . . . . . . . 4 . . . . 3 . 3 . . . . . . . . . . . Triggered 37 | . . . . . . . . 3 . 2 . . . . 3 . 1 . . . . . . 3 3 . . 2 4 . 3 . . 11 1 . . . . . 1 . Most Traps Carried 6 | . . . . 5 5 5 5 5 2 6 4 4 4 4 4 1 1 1 4 4 4 4 4 4 3 3 3 3 6 3 3 . . . . . . . . . . . Machines | -11 -10 -10 -10 -9 -8 -8 -8 -7 -7 -7 -7 -7 -7 -6 -6 -6 -6 -6 -6 -6 -5 -5 -5 -5 -5 -5 -5 -4 -4 -4 -4 -4 -4 -4 -3 -3 -3 -3 -2 -1 -1 -1 ---------- Run | Jun Mat Min Exi Min Mat Gar Mat Fac Was Fac Low Low Zio Pro Fac Was Fac Low Low Dat Pro Fac Was Fac Upp Upp Zhi Pro Fac Was Fac Upp Upp War Pro Res Qua Sec Res Acc Com Ac0 Machines Disabled 86 | . 5 . . 1 7 5 2 5 . 2 . . . . 4 . 10 . . 1 . 12 . 1 . . . . . . 7 . . 2 . . 3 6 . . 4 9 Max in Single Turn 6 | . 3 . . . 2 1 1 4 . 1 . . . . 1 . 3 . . 1 . 6 . . . . . . . . 2 . . 2 . . 1 1 . . 2 1 Garrison Access 27 | . . . . . . . . 1 . 3 . . . . 2 . 3 . . . . 3 . 2 . . . . 2 . 1 . . . . 3 . . 4 3 . . Garrison Relay 4 | . . . . . . 4 . . . . . . . . . . . . . . . . . . . . . . . . . . . . . . . . . . . . Phase Generator 1 | . . . . . . . . . . . . . . . . . . . . . . . . . . . . . . . . . . . . . . . . . 1 . Machines Repaired . | . . . . . . . . . . . . . . . . . . . . . . . . . . . . . . . . . . . . . . . . . . . Machines Sabotaged . | . . . . . . . . . . . . . . . . . . . . . . . . . . . . . . . . . . . . . . . . . . . Overloaded Fab Kills . | . . . . . . . . . . . . . . . . . . . . . . . . . . . . . . . . . . . . . . . . . . . Hacking | -11 -10 -10 -10 -9 -8 -8 -8 -7 -7 -7 -7 -7 -7 -6 -6 -6 -6 -6 -6 -6 -5 -5 -5 -5 -5 -5 -5 -4 -4 -4 -4 -4 -4 -4 -3 -3 -3 -3 -2 -1 -1 -1 --------- Run | Jun Mat Min Exi Min Mat Gar Mat Fac Was Fac Low Low Zio Pro Fac Was Fac Low Low Dat Pro Fac Was Fac Upp Upp Zhi Pro Fac Was Fac Upp Upp War Pro Res Qua Sec Res Acc Com Ac0 Machines Accessed 238 | . 9 1 2 1 11 3 11 18 . 18 . . . 1 10 . 20 . . 3 . 15 . 10 2 . 4 . 19 . 20 . 1 4 . 19 . . 9 17 8 2 Terminals 119 | . 6 1 . . 8 3 7 11 . 7 . . . 1 6 . 7 . . . . 7 . 3 1 . . . 9 . 10 . . . . 11 . . 4 10 7 . Fabricators 26 | . . . . . . . . 4 . 3 . . . . . . 4 . . . . 2 . 1 . . . . 2 . 5 . . . . 1 . . 1 3 . . Repair Stations 16 | . 1 . . . 1 . 2 . . 1 . . . . . . 2 . . . . 2 . 1 . . . . 2 . 1 . . . . 2 . . . . 1 . Recycling Units 22 | . 2 . . . 1 . . . . 3 . . . . 1 . 4 . . . . 1 . 2 . . . . 3 . 2 . . . . 2 . . . 1 . . Scanalyzers 7 | . . . . . . . 1 1 . 1 . . . . 1 . . . . . . 1 . . . . . . 1 . 1 . . . . . . . . . . . Garrison Access 30 | . . . . . 1 . 1 2 . 3 . . . . 2 . 3 . . . . 2 . 3 . . . . 2 . 1 . . . . 3 . . 4 3 . . Total Hacks 762 | . 21 4 2 1 32 6 38 49 . 60 . . . 1 22 . 56 . . 21 . 68 . 28 11 . 17 . 52 . 55 . 1 15 . 64 . . 27 57 35 19 Successful 568 | . 12 1 2 1 17 . 19 24 . 43 . . . 1 18 . 40 . . 21 . 58 . 22 11 . 17 . 40 . 47 . 1 15 . 53 . . 19 39 28 19 Failed 188 | . 8 3 . . 15 6 19 25 . 16 . . . . 4 . 16 . . . . 10 . 6 . . . . 11 . 8 . . . . 10 . . 7 17 7 . Catastrophic 20 | . 1 1 . . 3 3 4 1 . 1 . . . . . . 1 . . . . . . 1 . . . . . . . . . . . 1 . . 1 2 . . Database Lockouts 6 | . 1 . . . . . . . . 1 . . . . . . . . . . . . . . . . . . 1 . . . . . . 1 . . 1 1 . . Manual 343 | . 11 4 1 . 20 . 12 35 . 32 . . . . 10 . 25 . . . . 28 . 18 . . . . 19 . 28 . . 1 . 38 . . 11 29 21 . Terminals 418 | . 14 4 . . 28 6 22 30 . 28 . . . 1 16 . 20 . . . . 36 . 9 10 . . . 31 . 26 . . . . 44 . . 18 42 33 . Fabricators 87 | . . . . . . . . 14 . 13 . . . . . . 15 . . . . 5 . 2 . . . . 3 . 15 . . . . 8 . . 4 8 . . Repair Stations 51 | . 5 . . . 2 . 10 . . 2 . . . . . . 4 . . . . 16 . 1 . . . . 4 . 1 . . . . 4 . . . . 2 . Recycling Units 69 | . 2 . . . 1 . . . . 10 . . . . 3 . 14 . . . . 5 . 10 . . . . 10 . 6 . . . . 5 . . . 3 . . Scanalyzers 18 | . . . . . . . 2 2 . 2 . . . . 1 . . . . . . 3 . . . . . . 2 . 6 . . . . . . . . . . . Garrison Access 42 | . . . . . 1 . 4 3 . 5 . . . . 2 . 3 . . . . 3 . 6 . . . . 2 . 1 . . . . 3 . . 5 4 . . Terminal Hacks 271 | . 4 1 2 1 11 . 7 5 . 11 . . . 1 8 . 11 . . 21 . 25 . 4 11 . 17 . 15 . 12 . 1 15 . 23 . . 12 19 15 19 Record 40 | . . . 1 . . . . . . . . . . 1 . . . . . 6 . . . . 10 . 5 . . . . . . . . . . . . . 1 16 Part Schematic 31 | . . . . . . . . 1 . 1 . . . . 1 . . . . 8 . 3 . . . . 4 . 3 . . . . . . 7 . . 1 2 . . Robot Schematic 4 | . . . . . . . . . . . . . . . . . . . . 4 . . . . . . . . . . . . . . . . . . . . . . Robot Analysis 9 | . 1 . . . 3 . 1 . . . . . . . . . . . . . . . . . . . 4 . . . . . . . . . . . . . . . Prototype ID Bank 38 | . 2 1 . . . . 1 . . . . . . . . . 1 . . 3 . 3 . . . . 4 . 1 . . . . 14 . 5 . . 1 . 2 . Open Door 8 | . . . . 1 . . . . . . . . . . . . . . . . . . . . 1 . . . . . . . 1 1 . . . . . 3 1 . Open DSF 1 | . . . . . . . . . . . . . . . . . . . . . . . . . . . . . . . . . . . . . . . 1 . . . Level Access Points 5 | . . . . . . . . . . 1 . . . . . . . . . . . 1 . . . . . . 1 . . . . . . . . . 1 . 1 . Branch Access Points 11 | . . . . . . . . 1 . 1 . . . . 1 . 1 . . . . 1 . 1 . . . . 1 . 1 . . . . 1 . . 1 1 . . Machine Index 10 | . . . . . . . . . . 1 . . . . 1 . 1 . . . . 1 . . . . . . 1 . 1 . . . . 1 . . 1 1 1 . Terminal Index 6 | . . . . . 1 . . 1 . . . . . . . . 1 . . . . . . 1 . . . . . . 1 . . . . . . . . 1 . . Fabricator Index 1 | . . . . . . . . . . . . . . . . . . . . . . . . . . . . . . . . . . . . . . . . 1 . . Alert Level 4 | . . . . . 2 . 1 . . . . . . . . . . . . . . . . . . . . . . . . . . . . . . . . . 1 . Unreport Threat 11 | . . . . . 2 . 2 . . . . . . . . . . . . . . . . . . . . . . . 2 . . . . 1 . . . 4 . . Locate Traps 16 | . 1 . . . 1 . . . . 1 . . . . . . 2 . . . . 4 . . . . . . 2 . 1 . . . . 1 . . 1 1 1 . Dispatch Records 1 | . . . . . . . . . . . . . . . . . . . . . . . . . . . . . . . . . . . . . . . 1 . . . Maintenance Status 6 | . . . . . . . . . . 1 . . . . . . . . . . . 1 . 1 . . . . . . 1 . . . . 1 . . 1 . . . Surveillance Status 1 | . . . . . . . . . . . . . . . . . . . . . . . . . . . . . . . . . . . . . . . . 1 . . Patrol Status 7 | . . . . . . . . . . 1 . . . . . . . . . . . 1 . . . . . . . . 1 . . . . 2 . . 1 1 . . Recall Investigation 4 | . . . . . . . . . . 2 . . . . . . . . . . . 1 . . . . . . . . 1 . . . . . . . . . . . Recall Extermination 14 | . . . . . . . . 1 . . . . . . 2 . 1 . . . . 2 . 1 . . . . 4 . 2 . . . . 1 . . . . . . Recall Reinforcements 2 | . . . . . . . . . . . . . . . 1 . 1 . . . . . . . . . . . . . . . . . . . . . . . . . Recall Assault 4 | . . . . . . . . . . . . . . . . . 1 . . . . 3 . . . . . . . . . . . . . . . . . . . . Hauler Manifests 4 | . . . . . 1 . . . . 1 . . . . 1 . 1 . . . . . . . . . . . . . . . . . . . . . . . . . Registered Components 3 | . . . . . . . . . . . . . . . . . . . . . . 1 . . . . . . . . . . . . . . . . 1 . 1 . Registered Prototypes 4 | . . . . . . . . . . 1 . . . . . . . . . . . . . . . . . . 1 . . . . . . 1 . . . . 1 . Zone Layout 20 | . . . . . 1 . 2 1 . . . . . . 1 . 1 . . . . 3 . . . . . . 1 . 1 . . . . 2 . . 1 3 3 . Derelict Proto ID Bank 1 | . . . 1 . . . . . . . . . . . . . . . . . . . . . . . . . . . . . . . . . . . . . . . Disengage Seal 2 | . . . . . . . . . . . . . . . . . . . . . . . . . . . . . . . . . . . . . . . . . 2 . Gate Test 138-A 1 | . . . . . . . . . . . . . . . . . . . . . . . . . . . . . . . . . . . . . . . . . . 1 Gate Test 138-B 1 | . . . . . . . . . . . . . . . . . . . . . . . . . . . . . . . . . . . . . . . . . . 1 Gate Test 138-C 1 | . . . . . . . . . . . . . . . . . . . . . . . . . . . . . . . . . . . . . . . . . . 1 Fabricator Hacks 50 | . . . . . . . . 7 . 7 . . . . . . 8 . . . . 3 . 1 . . . . 2 . 9 . . . . 6 . . 2 5 . . Network Status 4 | . . . . . . . . . . 1 . . . . . . 1 . . . . . . 1 . . . . 1 . . . . . . . . . . . . . Load Schematic 28 | . . . . . . . . 5 . 3 . . . . . . 4 . . . . 2 . . . . . . 1 . 6 . . . . 3 . . 1 3 . . Build 18 | . . . . . . . . 2 . 3 . . . . . . 3 . . . . 1 . . . . . . . . 3 . . . . 3 . . 1 2 . . Repair Station Hacks 45 | . 4 . . . 2 . 7 . . 2 . . . . . . 4 . . . . 16 . . . . . . 4 . . . . . . 4 . . . . 2 . Scan Component 25 | . 2 . . . 1 . 5 . . 1 . . . . . . 2 . . . . 8 . . . . . . 2 . . . . . . 3 . . . . 1 . Repair 20 | . 2 . . . 1 . 2 . . 1 . . . . . . 2 . . . . 8 . . . . . . 2 . . . . . . 1 . . . . 1 . Recycling Unit Hacks 19 | . . . . . . . . . . 3 . . . . 1 . 2 . . . . 1 . 4 . . . . 3 . 2 . . . . 2 . . . 1 . . Retrieve Components 19 | . . . . . . . . . . 3 . . . . 1 . 2 . . . . 1 . 4 . . . . 3 . 2 . . . . 2 . . . 1 . . Scanalyzer 16 | . . . . . . . 2 . . 2 . . . . 1 . . . . . . 3 . . . . . . 2 . 6 . . . . . . . . . . . Insert Component 10 | . . . . . . . 1 . . 1 . . . . 1 . . . . . . 3 . . . . . . 2 . 2 . . . . . . . . . . . Analyze 6 | . . . . . . . 1 . . 1 . . . . . . . . . . . . . . . . . . . . 4 . . . . . . . . . . . Garrison Access Hacks 27 | . . . . . 1 . . 1 . 3 . . . . 2 . 3 . . . . 2 . 2 . . . . 2 . 1 . . . . 3 . . 4 3 . . Unlock Access 1 | . . . . . 1 . . . . . . . . . . . . . . . . . . . . . . . . . . . . . . . . . . . . . Seal Access 26 | . . . . . . . . 1 . 3 . . . . 2 . 3 . . . . 2 . 2 . . . . 2 . 1 . . . . 3 . . 4 3 . . Unauthorized Hacks 140 | . 4 . . . 3 . 3 11 . 15 . . . . 6 . 12 . . . . 8 . 11 . . . . 12 . 17 . . . . 15 . . 1 11 11 . Terminals 70 | . 2 . . . 2 . 3 6 . 7 . . . . 4 . 3 . . . . 3 . 2 . . . . 4 . 6 . . . . 11 . . . 6 11 . Track 9 | . . . . . . . . . . 2 . . . . . . 1 . . . . . . . . . . . . . . . . . . 2 . . . . 4 . Assimilate 20 | . . . . . . . . 2 . 2 . . . . 3 . . . . . . 1 . 1 . . . . 2 . 4 . . . . 3 . . . 2 . . Botnet 20 | . 2 . . . 1 . 2 3 . 1 . . . . . . 1 . . . . 1 . . . . . . 1 . 1 . . . . 3 . . . 2 2 . Disrupt 8 | . . . . . . . . . . 1 . . . . . . . . . . . . . . . . . . . . . . . . . 2 . . . 1 4 . Operators 13 | . . . . . 1 . 1 1 . 1 . . . . 1 . 1 . . . . 1 . 1 . . . . 1 . 1 . . . . 1 . . . 1 1 . Fabricators 26 | . . . . . . . . 3 . 3 . . . . . . 5 . . . . 2 . 1 . . . . 1 . 6 . . . . 1 . . 1 3 . . Report 1 | . . . . . . . . . . . . . . . . . . . . . . . . 1 . . . . . . . . . . . . . . . . . . Prioritize 12 | . . . . . . . . . . 2 . . . . . . 2 . . . . 1 . . . . . . . . 3 . . . . 1 . . 1 2 . . Haulers 4 | . . . . . . . . 1 . 1 . . . . . . 2 . . . . . . . . . . . . . . . . . . . . . . . . . Recompile 9 | . . . . . . . . 2 . . . . . . . . 1 . . . . 1 . . . . . . 1 . 3 . . . . . . . . 1 . . Repair Stations 2 | . . . . . . . . . . . . . . . . . . . . . . . . 1 . . . . . . 1 . . . . . . . . . . . Mechanics 2 | . . . . . . . . . . . . . . . . . . . . . . . . 1 . . . . . . 1 . . . . . . . . . . . Recycling Units 37 | . 2 . . . 1 . . . . 5 . . . . 2 . 4 . . . . 3 . 4 . . . . 7 . 4 . . . . 3 . . . 2 . . Reject 8 | . . . . . . . . . . 1 . . . . . . 1 . . . . 1 . 1 . . . . 3 . 1 . . . . . . . . . . . Recyclers 9 | . . . . . . . . . . 1 . . . . 1 . 1 . . . . 1 . 1 . . . . 1 . 1 . . . . 1 . . . 1 . . Mask 17 | . . . . . . . . . . 3 . . . . 1 . 2 . . . . 1 . 2 . . . . 3 . 2 . . . . 2 . . . 1 . . Tunnel 3 | . 2 . . . 1 . . . . . . . . . . . . . . . . . . . . . . . . . . . . . . . . . . . . . Scanalyzers 1 | . . . . . . . . 1 . . . . . . . . . . . . . . . . . . . . . . . . . . . . . . . . . . Extract 1 | . . . . . . . . 1 . . . . . . . . . . . . . . . . . . . . . . . . . . . . . . . . . . Garrison Access 4 | . . . . . . . . 1 . . . . . . . . . . . . . . . 3 . . . . . . . . . . . . . . . . . . Broadcast 1 | . . . . . . . . . . . . . . . . . . . . . . . . 1 . . . . . . . . . . . . . . . . . . Redirect 1 | . . . . . . . . . . . . . . . . . . . . . . . . 1 . . . . . . . . . . . . . . . . . . Watchers 2 | . . . . . . . . 1 . . . . . . . . . . . . . . . 1 . . . . . . . . . . . . . . . . . . Data Cores Recovered 2 | . . . . . 1 . . . . . . . . . . . . . . . . . . . . . . . . . . . . . . . . . . 1 . . Used . | . . . . . . . . . . . . . . . . . . . . . . . . . . . . . . . . . . . . . . . . . . . Hacking Detections 141 | . 4 1 . . 9 3 10 15 . 11 . . . . 5 . 14 . . . . 10 . 5 1 . . . 9 . 14 . . . . 13 . . 4 9 4 . Full Trace Events 15 | . . . . . . 1 1 . . 4 . . . . . . 2 . . . . 1 . . . . . . . . 3 . . . . 1 . . 2 . . . Feedback Events 2 | . . . . . . 1 . . . . . . . . . . . . . . . . . . . . . . . . . . . . . . . . 1 . . . Corruption 1 | . . . . . . 1 . . . . . . . . . . . . . . . . . . . . . . . . . . . . . . . . . . . . Hackware Fried 1 | . . . . . . . . . . . . . . . . . . . . . . . . . . . . . . . . . . . . . . . 1 . . . Feedback Blocked . | . . . . . . . . . . . . . . . . . . . . . . . . . . . . . . . . . . . . . . . . . . . Robot Schematics Acquired 4 | . . . . . . . . . . . . . . . . . . . . 4 . . . . . . . . . . . . . . . . . . . . . . Robots Built . | . . . . . . . . . . . . . . . . . . . . . . . . . . . . . . . . . . . . . . . . . . . Authchips . | . . . . . . . . . . . . . . . . . . . . . . . . . . . . . . . . . . . . . . . . . . . Time . | . . . . . . . . . . . . . . . . . . . . . . . . . . . . . . . . . . . . . . . . . . . Total Robot Build Rating . | . . . . . . . . . . . . . . . . . . . . . . . . . . . . . . . . . . . . . . . . . . . Part Schematics Acquired 37 | . . . . . . . 1 4 . 2 . . . . 1 . . . . 8 . 3 . . . . 4 . 3 . 1 . . . . 7 . . 1 2 . . Parts Built 19 | . . . . . . . . 2 . 3 . . . . . . 3 . . . . 1 . . . . . . . . 3 . . . . 3 . . 1 3 . . Authchips 8 | . . . . . . . . 2 . . . . . . . . 1 . . . . . . . . . . . . . 1 . . . . 2 . . . 2 . . Time 1034 | . . . . . . . . 111 . 140 . . . . . . 212 . . . . 84 . . . . . . . . 174 . . . . 133 . . 37 143 . . Total Part Build Rating 129 | . . . . . . . . 8 . 18 . . . . . . 18 . . . . 6 . . . . . . . . 21 . . . . 22 . . 9 27 . . Parts Repaired 20 | . 2 . . . 1 . 2 . . 1 . . . . . . 2 . . . . 8 . . . . . . 2 . . . . . . 1 . . . . 1 . Time 1069 | . 52 . . . 26 . 108 . . 60 . . . . . . 133 . . . . 588 . . . . . . 51 . . . . . . 29 . . . . 22 . Parts Recycled . | . . . . . . . . . . . . . . . . . . . . . . . . . . . . . . . . . . . . . . . . . . . Recycled Matter . | . . . . . . . . . . . . . . . . . . . . . . . . . . . . . . . . . . . . . . . . . . . Retrieved Matter . | . . . . . . . . . . . . . . . . . . . . . . . . . . . . . . . . . . . . . . . . . . . Retrieved Components 52 | . . . . . . . . . . 13 . . . . 1 . 3 . . . . . . 20 . . . . 3 . 5 . . . . 4 . . . 3 . . Parts Scanalyzed 3 | . . . . . . . 1 . . 1 . . . . . . . . . . . . . . . . . . . . 1 . . . . . . . . . . . Part Schematics Acquired 3 | . . . . . . . 1 . . 1 . . . . . . . . . . . . . . . . . . . . 1 . . . . . . . . . . . Parts Damaged 1 | . . . . . . . . . . . . . . . . . . . . . . . . . . . . . . . 1 . . . . . . . . . . . Bothacking | -11 -10 -10 -10 -9 -8 -8 -8 -7 -7 -7 -7 -7 -7 -6 -6 -6 -6 -6 -6 -6 -5 -5 -5 -5 -5 -5 -5 -4 -4 -4 -4 -4 -4 -4 -3 -3 -3 -3 -2 -1 -1 -1 ------------ Run | Jun Mat Min Exi Min Mat Gar Mat Fac Was Fac Low Low Zio Pro Fac Was Fac Low Low Dat Pro Fac Was Fac Upp Upp Zhi Pro Fac Was Fac Upp Upp War Pro Res Qua Sec Res Acc Com Ac0 Used RIF Installer . | . . . . . . . . . . . . . . . . . . . . . . . . . . . . . . . . . . . . . . . . . . . Robots Hacked 6 | . . . 4 1 . . . 1 . . . . . . . . . . . . . . . . . . . . . . . . . . . . . . . . . . Non-combat 5 | . . . 3 1 . . . 1 . . . . . . . . . . . . . . . . . . . . . . . . . . . . . . . . . . Combat 1 | . . . 1 . . . . . . . . . . . . . . . . . . . . . . . . . . . . . . . . . . . . . . . Robot Hacks Applied 6 | . . . 4 1 . . . 1 . . . . . . . . . . . . . . . . . . . . . . . . . . . . . . . . . . parse_system 5 | . . . 4 1 . . . . . . . . . . . . . . . . . . . . . . . . . . . . . . . . . . . . . . find_chute 1 | . . . . . . . . 1 . . . . . . . . . . . . . . . . . . . . . . . . . . . . . . . . . . Relay Couplers Released 24 | . . . . . . 18 . . . . . . . . . . . . . . . 2 . . . . . . . . . . . . . . . . 4 . . . Machine Destruction 20 | . . . . . . 18 . . . . . . . . . . . . . . . 2 . . . . . . . . . . . . . . . . . . . . Programmers 4 | . . . . . . . . . . . . . . . . . . . . . . . . . . . . . . . . . . . . . . . 4 . . . Fabnet Peak Effective % . | . . . . . . . . . . . . . . . . . . . . . . . . . . . . . . . . . . . . . . . . . . . Robots Rewired 8 | . . . . . . . . . . . 2 . . . . . . . . . . . . . . . . . . . . . . 5 . . . . . . 1 . Allies Hacked 4 | . . . . . . . . . . 1 . . . 1 . . . . . . . . . 1 . . . . . . . . . . . . . . . . 1 . Hacks Repelled . | . . . . . . . . . . . . . . . . . . . . . . . . . . . . . . . . . . . . . . . . . . . Allies | -11 -10 -10 -10 -9 -8 -8 -8 -7 -7 -7 -7 -7 -7 -6 -6 -6 -6 -6 -6 -6 -5 -5 -5 -5 -5 -5 -5 -4 -4 -4 -4 -4 -4 -4 -3 -3 -3 -3 -2 -1 -1 -1 -------- Run | Jun Mat Min Exi Min Mat Gar Mat Fac Was Fac Low Low Zio Pro Fac Was Fac Low Low Dat Pro Fac Was Fac Upp Upp Zhi Pro Fac Was Fac Upp Upp War Pro Res Qua Sec Res Acc Com Ac0 Total Allies 93 | . . . . 3 . . . 2 20 2 2 . 5 . 2 19 . . . . . 1 19 1 . . . . 2 . 4 . . 5 . 3 . . . 2 1 . Largest Group 19 | . . . . 3 . . . 1 19 17 2 2 6 6 1 19 11 . . . . 1 19 10 . . . . 2 . 2 . . 5 3 3 . . . 1 1 . Highest-Rated Group 684 | . . . . 40 . . . 26 475 424 51 51 160 160 26 684 434 . . . . 10 684 405 . . . . 36 . 26 . . 301 168 100 . . . 45 195 . Highest-Rated Ally 195 | . . . . 16 . . . 26 35 33 31 31 31 31 26 50 46 . . . . 10 50 46 . . . . 26 . 26 . . 68 68 45 . . . 45 195 . Total Orders 66 | . . . . . . . . 5 . 3 . 5 . . 1 . . . . . . . . 4 . . . . 18 . 5 . . 4 . 20 . . . . 1 . STAY 44 | . . . . . . . . 3 . 2 . 4 . . 1 . . . . . . . . 2 . . . . 11 . 4 . . 2 . 14 . . . . 1 . FOLLOW 22 | . . . . . . . . 2 . 1 . 1 . . . . . . . . . . . 2 . . . . 7 . 1 . . 2 . 6 . . . . . . Ally Attacks 673 | . . . . 14 . . . . 76 143 . 4 . 29 . 110 68 . . . . . 155 42 . . . . . . . . . 10 11 . . . . . 11 . Total Damage 20246 | . . . . 123 . . . . 3040 2265 . 41 . 353 . 4179 1575 . . . . . 5632 1306 . . . . . . . . . 610 532 . . . . . 590 . Kills 87 | . . . . 1 . . . . 7 18 . 1 . 6 . 12 10 . . . . . 12 10 . . . . . . . . . 1 2 . . . . . 7 . Allies Corrupted 8 | . . . . . . . . . . 4 . . . . . . 1 . . . . . . 3 . . . . . . . . . . . . . . . . . . Allies Melted 2 | . . . . . . . . . . . . . . . . . . . . . . . . . . . . . . . . . . 1 . . . . 1 . . . Intel | -11 -10 -10 -10 -9 -8 -8 -8 -7 -7 -7 -7 -7 -7 -6 -6 -6 -6 -6 -6 -6 -5 -5 -5 -5 -5 -5 -5 -4 -4 -4 -4 -4 -4 -4 -3 -3 -3 -3 -2 -1 -1 -1 ------- Run | Jun Mat Min Exi Min Mat Gar Mat Fac Was Fac Low Low Zio Pro Fac Was Fac Low Low Dat Pro Fac Was Fac Upp Upp Zhi Pro Fac Was Fac Upp Upp War Pro Res Qua Sec Res Acc Com Ac0 Robot Analysis Total 9 | . 1 . . . 3 . 1 . . . . . . . . . . . . . . . . . . . 4 . . . . . . . . . . . . . . . Derelict Logs Recovered 9 | . . . . 1 . . . . . . 1 . . . . . . 1 . . 1 . . . 1 1 . 1 . . . 1 1 . . . . . . . . . Drone Launches . | . . . . . . . . . . . . . . . . . . . . . . . . . . . . . . . . . . . . . . . . . . . Drone Recoveries . | . . . . . . . . . . . . . . . . . . . . . . . . . . . . . . . . . . . . . . . . . . . Exploration | -11 -10 -10 -10 -9 -8 -8 -8 -7 -7 -7 -7 -7 -7 -6 -6 -6 -6 -6 -6 -6 -5 -5 -5 -5 -5 -5 -5 -4 -4 -4 -4 -4 -4 -4 -3 -3 -3 -3 -2 -1 -1 -1 ------------- Run | Jun Mat Min Exi Min Mat Gar Mat Fac Was Fac Low Low Zio Pro Fac Was Fac Low Low Dat Pro Fac Was Fac Upp Upp Zhi Pro Fac Was Fac Upp Upp War Pro Res Qua Sec Res Acc Com Ac0 Turns Passed 46648 | . 2546 2127 831 1948 3122 1871 2649 1699 1029 1258 569 544 369 434 1102 814 1800 313 673 82 120 3092 457 911 370 181 53 237 3318 11 1633 218 150 1158 1125 1198 206 180 1205 995 2529 1521 Spaces Moved 67518 | 1 1274 757 342 781 1109 646 937 3937 389 3059 1360 1212 763 1082 2542 582 4044 1009 960 122 324 2729 385 1885 1017 677 162 351 5457 79 4471 733 537 1648 662 2917 827 514 3805 1984 4575 4871 Core . | . . . . . . . . . . . . . . . . . . . . . . . . . . . . . . . . . . . . . . . . . . . Treads 5571 | . 1088 757 342 781 1109 646 848 . . . . . . . . . . . . . . . . . . . . . . . . . . . . . . . . . . . Legs 187 | 1 186 . . . . . . . . . . . . . . . . . . . . . . . . . . . . . . . . . . . . . . . . . Wheels . | . . . . . . . . . . . . . . . . . . . . . . . . . . . . . . . . . . . . . . . . . . . Hover . | . . . . . . . . . . . . . . . . . . . . . . . . . . . . . . . . . . . . . . . . . . . Flight 61758 | . . . . . . . 89 3937 389 3059 1360 1212 763 1082 2542 582 4044 1009 960 122 324 2729 385 1885 1017 677 162 351 5457 79 4471 733 537 1648 662 2917 827 514 3803 1984 4575 4871 Fastest Speed 5 | 120 120 240 240 240 145 225 29 20 26 26 26 26 26 17 14 17 14 26 14 20 14 5 17 5 6 6 20 20 6 11 6 20 20 17 21 7 7 7 17 7 7 7 Average Speed 38 | 120 169 240 240 240 212 225 217 25 26 26 26 26 26 25 25 26 25 26 28 24 25 22 22 23 23 23 22 20 17 13 17 20 20 21 21 18 17 17 17 16 21 16 Slowest Speed 243 | 120 240 240 240 240 240 225 243 26 26 29 26 26 26 26 94 105 99 26 93 26 26 26 23 93 24 92 24 20 88 17 88 20 20 85 21 21 18 18 20 17 81 17 Overloaded Moves 876 | . . . . . . . . 17 . . . . . 1 21 16 85 . 29 23 6 39 19 15 17 14 . . 22 54 22 . . . . 10 59 27 . 58 32 290 Propulsion Burnouts . | . . . . . . . . . . . . . . . . . . . . . . . . . . . . . . . . . . . . . . . . . . . Robots Hopped 218 | . . . . 1 . . . 26 2 22 . 1 . . 17 . 9 . 2 . . 9 . 14 1 . . . 26 . 12 . . 8 . 19 1 1 7 14 12 14 Cave-ins Triggered 1 | . . 1 . . . . . . . . . . . . . . . . . . . . . . . . . . . . . . . . . . . . . . . . Teleports 4 | . . . . . . . . . . . . . . . . . . . . . . . . . . . . . . . . . . . . . 1 1 . . 1 1 Spacefolds 1 | . . . . . . . . . . . . . . . . . . . . . . . . . . . . . . . . . . . . . . . 1 . . . Exploration Rate (%) 71 | 1 99 99 69 99 89 59 55 72 89 55 98 99 84 95 43 90 74 88 79 80 47 43 94 31 94 81 61 37 70 75 63 77 65 88 74 58 78 44 72 50 79 96 Regions Visited 42 Branch Regions 23 Pre-discovered Areas 16 | . 2 . 1 1 1 . . . . . 1 . 1 . . . . 1 . 1 . . . . 3 . 3 . . . . . 1 . . . . . . . . . Known Exits Taken 13 | . . . . . 1 . . . . 1 . . . 1 . . 1 . . . 1 . . 1 . . . 1 . . 1 . . . 1 1 . 1 1 1 . . Unknown Exits Taken 20 | 1 1 1 1 1 . . 1 . . . 1 1 1 . . . . 1 1 1 . . . . 1 1 1 . . . . 1 1 1 . . 1 . . . 1 . Scrap Searched 39 | . . 1 . 2 . . . . . . 2 3 3 1 . . . 5 2 . 2 . . . 3 3 . 2 . . . 2 4 . 4 . . . . . . . Spaces Dug 553 | . . 3 . . 29 7 1 32 . 17 5 4 . 3 19 . 74 1 21 7 1 38 . 10 5 1 . 1 38 . 39 19 2 45 1 32 21 7 22 18 23 7 Terrain Destroyed 2414 | . 28 3 . 2 63 45 2 78 26 40 102 72 . 123 177 . 209 155 95 7 15 109 40 40 64 15 . 1 69 . 173 99 54 155 138 57 21 7 22 18 83 7 Melee 465 | . . . . . 4 7 1 32 . 17 5 4 . 3 19 . 58 1 21 7 1 38 . 10 5 1 . 1 38 . 28 2 2 45 1 32 5 7 22 18 23 7 Projectile 29 | . . 3 . . 24 1 1 . . . . . . . . . . . . . . . . . . . . . . . . . . . . . . . . . . . AOE 1918 | . 28 . . 2 33 37 . 46 26 23 97 68 . 120 158 . 151 154 74 . 14 71 40 30 59 14 . . 31 . 145 97 52 110 137 25 16 . . . 60 . Terrain Rammed . | . . . . . . . . . . . . . . . . . . . . . . . . . . . . . . . . . . . . . . . . . . . Walls Destroyed . | . . . . . . . . . . . . . . . . . . . . . . . . . . . . . . . . . . . . . . . . . . . Machines Disabled . | . . . . . . . . . . . . . . . . . . . . . . . . . . . . . . . . . . . . . . . . . . . Actions | -11 -10 -10 -10 -9 -8 -8 -8 -7 -7 -7 -7 -7 -7 -6 -6 -6 -6 -6 -6 -6 -5 -5 -5 -5 -5 -5 -5 -4 -4 -4 -4 -4 -4 -4 -3 -3 -3 -3 -2 -1 -1 -1 --------- Run | Jun Mat Min Exi Min Mat Gar Mat Fac Was Fac Low Low Zio Pro Fac Was Fac Low Low Dat Pro Fac Was Fac Upp Upp Zhi Pro Fac Was Fac Upp Upp War Pro Res Qua Sec Res Acc Com Ac0 Total 85872 | . 1544 1020 352 829 1611 952 1384 4467 1301 3453 1548 1419 932 1211 2850 1241 4594 1032 1317 146 356 5105 737 2298 1131 693 178 515 7633 78 5197 786 567 2336 1627 3486 873 573 4329 2618 6066 5487 Wait 15309 | . 145 232 . 12 236 218 297 355 906 327 154 194 168 115 221 644 400 4 321 . 27 2278 341 344 97 7 . 162 1998 . 596 40 23 551 951 495 8 15 321 570 1219 317 Move 67070 | . 1273 756 341 778 1109 643 936 3885 385 3021 1359 1209 762 1081 2512 581 4025 1008 956 121 323 2711 384 1857 1014 676 161 350 5407 78 4446 732 536 1634 661 2879 824 511 3789 1956 4553 4847 Hop 189 | . . . . 1 . . . 26 1 15 . 1 . . 13 . 9 . 1 . . 9 . 13 1 . . . 24 . 12 . . 5 . 18 1 1 7 13 9 9 Pick Up 250 | . 18 1 1 5 26 . 12 9 . 3 . . . . 9 1 10 1 1 3 . 10 . 2 1 . 3 . 13 . 13 . . 12 . 9 3 6 25 3 36 14 Fast Attach 303 | . 8 . . 1 10 1 9 23 . 7 2 1 1 . 8 6 3 . 3 . 2 8 . 15 2 2 6 1 17 . 9 . . 12 . 8 6 11 57 17 28 19 Attach 125 | . 2 2 2 2 12 . 11 8 . 1 . . . . 3 . 5 . 1 . . 5 . 1 1 . . . 4 . 4 . . 5 . 6 2 5 5 5 20 13 Detach 98 | . 1 1 1 2 1 . 1 3 . 2 1 . . . 3 . . . 1 . . 2 . 4 . . . 1 4 . 8 . . 3 . 4 2 1 3 6 30 13 Swap 217 | . 11 5 2 9 22 19 3 13 . 14 . . . . 2 1 10 . 2 1 . 9 . 5 2 2 . . 26 . 16 2 . . . 9 3 1 6 3 11 8 Drop 444 | . 13 1 1 4 32 1 25 32 . 9 1 . 1 . 10 7 5 . 4 3 2 10 . 13 1 2 8 . 21 . 15 . . 23 . 11 7 8 79 13 55 27 Fire 602 | . 64 22 . 10 148 45 83 8 4 2 14 8 . 10 19 . 25 11 5 . 1 4 8 2 5 3 . . 6 . 27 10 6 28 12 3 1 . . . 1 7 Melee 1058 | . . . 4 1 4 14 1 75 5 27 5 6 . 5 47 1 91 8 22 18 1 52 4 26 7 1 . 1 85 . 48 2 2 53 3 44 9 14 37 27 95 213 Ram . | . . . . . . . . . . . . . . . . . . . . . . . . . . . . . . . . . . . . . . . . . . . Kick . | . . . . . . . . . . . . . . . . . . . . . . . . . . . . . . . . . . . . . . . . . . . Crush 25 | . 4 . . 4 11 . 6 . . . . . . . . . . . . . . . . . . . . . . . . . . . . . . . . . . . Escape Stasis 67 | . . . . . . 11 . . . 10 . . . . . . 5 . . . . 7 . . . . . . 14 . . . . . . . 7 . . 5 8 . Rewire 23 | . . . . . . . . . . . 12 . . . . . . . . . . . . . . . . . . . . . . 10 . . . . . . 1 . Trap 92 | . 5 . . . . . . 30 . 15 . . . . 3 . 6 . . . . . . 16 . . . . 14 . 3 . . . . . . . . . . . Miscellaneous . | . . . . . . . . . . . . . . . . . . . . . . . . . . . . . . . . . . . . . . . . . . . Route ------- -11/Junkyard -10/Materials (discovered 6 exits: [*Mat x3] / *Min x2 / [*Sub]) -10/Mines (discovered 4 exits: [*Mat x2] / *Exi / [*Sub]) -10/Exiles -9/Mines (discovered 2 exits: *Mat x2) -8/Materials (discovered 4 exits: *Fac x3 / Gar) -8/Garrison (discovered 3 exits: *Mat x3) -8/Materials (discovered 2 exits: *Fac x2) -7/Factory (discovered 7 exits: *Fac x3 / *Sto x2 / *Low x2) -7/Waste -7/Factory (discovered 7 exits: *Fac x4 / *Sto / *Low x2) -7/Lower Caves -7/Lower Caves (discovered 2 exits: *Fac / [*Zio]) -7/Zion -6/Proximity Caves -6/Factory (discovered 4 exits: *Fac x2 / *Low x2) -6/Waste -6/Factory (discovered 2 exits: *Low x2) -6/Lower Caves -6/Lower Caves (discovered 2 exits: *Fac / *Dat) -6/Data Miner -5/Proximity Caves -5/Factory (discovered 8 exits: *Fac x4 / *Upp x2 / Ext x2) -5/Waste -5/Factory (discovered 5 exits: *Fac / *Upp x2 / Ext x2) -5/Upper Caves -5/Upper Caves (discovered 2 exits: *Fac / *Zhi) -5/Zhirov -4/Proximity Caves -4/Factory (discovered 6 exits: *Res x4 / Upp x2) -4/Waste -4/Factory (discovered 5 exits: *Res x3 / *Upp x2) -4/Upper Caves -4/Upper Caves -4/Warlord -3/Proximity Caves -3/Research (discovered 5 exits: *Res x2 / Arm / *Qua x2) -3/Quarantine -3/Section 7 -2/Research (discovered 5 exits: *Acc x3 / *Tes x2) -1/Access -1/Command (discovered 3 exits: *Sur x2 / *Ac0) -1/Access_0 To Fleet Rendezvous History --------- Turn | Location | Event 1 | -11/Junkyard | Discovered new exit (range 0) 1 | -11/Junkyard | Entered Materials 257 | -10/Materials | Discovered new exit (range 9) 313 | -10/Materials | Build established: Mutant 389 | -10/Materials | Central database locked down 460 | -10/Materials | Discovered new exit (range 13) 641 | -10/Materials | Discovered new exit (range 16) 728 | -10/Materials | Discovered new exit (range 12) 881 | -10/Materials | Discovered new exit (range 13) 1723 | -10/Materials | Discovered new exit (range 7) 2120 | -10/Materials | Repaired Lgt. Armor Plating 2152 | -10/Materials | Repaired Lgt. Treads 2547 | -10/Materials | Entered Mines 2690 | -10/Mines | Discovered new exit (range 7) 2693 | -10/Mines | Assembled infested the area 2720 | -10/Mines | Crushed by falling debris 3402 | -10/Mines | Discovered new exit (range 5) 3832 | -10/Mines | Discovered new exit (range 9) 4663 | -10/Mines | Deemed a non-threat by the Exiles lab entrance 4663 | -10/Mines | Discovered new exit (range 5) 4674 | -10/Mines | Entered Exiles 4739 | -10/Exiles | Met 8R-AWN 4777 | -10/Exiles | Met EX-HEX 4869 | -10/Exiles | Met EX-DEC 4936 | -10/Exiles | Learned location of Zion (-7) 4989 | -10/Exiles | Met EX-BIN 5024 | -10/Exiles | Aligned with FarCom system 5026 | -10/Exiles | Given EX-Vault access code 5081 | -10/Exiles | Opened EX-Vault 5095 | -10/Exiles | Found Modified TNC 5144 | -10/Exiles | Warned to stay clear of 0b10 Research branches 5476 | -10/Exiles | Discovered new exit (range 14) 5505 | -10/Exiles | Left Exiles lab with Modified TNC 5505 | -10/Exiles | Entered Mines 6049 | -9/Mines | Assisted by bots powering up and referring to "LRC-V3" 6397 | -9/Mines | Discovered new exit (range 14) 6520 | -9/Mines | Met a Derelict who couldn't figure out how to use a Trap Extractor 6545 | -9/Mines | Core integrity fell below 50% 6857 | -9/Mines | Discovered new exit (range 13) 6910 | -9/Mines | System corruption reached 10% 7453 | -9/Mines | Entered Materials 7453 | -8/Materials | Evolved 4 slots: Propulsion x1, Utility x3 7748 | -8/Materials | Build established: Scavenger-Mutant 7968 | -8/Materials | Lost 3 parts (1n1u1w) 8252 | -8/Materials | Discovered new exit (range 4) 9131 | -8/Materials | Discovered new exit (range 16) 9206 | -8/Materials | Repaired Lgt. Armor Plating 9745 | -8/Materials | Discovered new exit (range 5) 10149 | -8/Materials | Build established: Mutant 10575 | -8/Materials | Identified exit to Garrison 10575 | -8/Materials | Entered Garrison 10718 | -8/Garrison | Triggered checkpoint 11057 | -8/Garrison | Triggered checkpoint 11061 | -8/Garrison | Triggered checkpoint 11359 | -8/Garrison | Garrison Relay disabled 11490 | -8/Garrison | Triggered checkpoint 11555 | -8/Garrison | Discovered new exit (range 10) 11604 | -8/Garrison | Triggered checkpoint 11698 | -8/Garrison | Triggered checkpoint 11753 | -8/Garrison | Garrison Relay disabled 11843 | -8/Garrison | Attempted to access garrison exit controls, blocked by remote lockdown 11996 | -8/Garrison | Garrison Relay disabled 12125 | -8/Garrison | Discovered new exit (range 11) 12147 | -8/Garrison | Attempted to access garrison exit controls, blocked by remote lockdown 12210 | -8/Garrison | Triggered checkpoint 12298 | -8/Garrison | Discovered new exit (range 8) 12396 | -8/Garrison | Garrison Relay disabled 12446 | -8/Garrison | Entered Materials 12893 | -8/Materials | Repaired Broken Imp. Assault Rifle 13182 | -8/Materials | Repaired Imp. Medium Armor Plating 13426 | -8/Materials | Discovered new exit (range 10) 13922 | -8/Materials | Build established: Scavenger-Mutant 14109 | -8/Materials | Discovered new exit (range 4) 14278 | -8/Materials | Build established: Mutant 14473 | -8/Materials | Garrison activated, responded to threat 14575 | -8/Materials | Garrison activated, responded to threat 15095 | -8/Materials | Entered Factory 15095 | -7/Factory | Evolved 2 slots: Propulsion x1, Utility x1 15160 | -7/Factory | Discovered new exit (range 5) 15333 | -7/Factory | Identified exit to Storage 15333 | -7/Factory | Identified exit to Lower Caves 15386 | -7/Factory | Discovered new exit (range 13) 15396 | -7/Factory | Build established: Hacker-Sprinter 15586 | -7/Factory | Fabricated Cld. VTOL Module (x1) 15739 | -7/Factory | Discovered new exit (range 12) 16106 | -7/Factory | Fabricated Cld. VTOL Module? 16353 | -7/Factory | Cargo convoy interrupted 16367 | -7/Factory | Found Prototype Hackware 16369 | -7/Factory | Found Prototype Launcher 16369 | -7/Factory | Identified Mni. Smartbomb Launcher 16373 | -7/Factory | Found Prototype Slashing Weapon 16373 | -7/Factory | Identified Centrium Greatsword 16412 | -7/Factory | Identified Exp. Hacking Suite 16695 | -7/Factory | First assault squad dispatched 16789 | -7/Factory | Discovered new exit (range 14) 16794 | -7/Factory | Manually triggered Chute Trap 16794 | -7/Factory | Sucked down chute 16794 | -7/Factory | Entered Waste 16795 | -7/Waste | Met a frightened Derelict 16797 | -7/Waste | Spotted C-40 Crusher 16810 | -7/Waste | Spotted C-40 Crusher 16811 | -7/Waste | Spotted C-40 Crusher 16816 | -7/Waste | Spotted C-40 Crusher 16825 | -7/Waste | Discovered new exit (range 15) 16825 | -7/Waste | Spotted C-40 Crusher 16825 | -7/Waste | Spotted C-40 Crusher 16861 | -7/Waste | Warlord forces began an assault 16867 | -7/Waste | Allies destroyed C-40 Crusher 16871 | -7/Waste | Allies destroyed C-40 Crusher 16878 | -7/Waste | Allies destroyed C-40 Crusher 16885 | -7/Waste | Allies destroyed C-40 Crusher 17823 | -7/Waste | Entered Factory 17823 | -7/Factory | Accompanied by 17 allies 17984 | -7/Factory | Discovered new exit (range 11) 18034 | -7/Factory | Repaired Imp. VTOL Module 18108 | -7/Factory | Identified exit to Factory 18659 | -7/Factory | Cargo convoy interrupted 18691 | -7/Factory | Found Prototype Device 18691 | -7/Factory | Identified Exp. ECM Suite 18755 | -7/Factory | Central database locked down 18805 | -7/Factory | Fabricated Cld. Nuclear Pulse Thruster? 18909 | -7/Factory | Fabricated Cld. Nuclear Pulse Thruster (x1) 19062 | -7/Factory | Fabricated Cld. Nuclear Pulse Thruster? 19081 | -7/Factory | Entered Lower Caves 19087 | -7/Lower Caves | Met a Warlord Commander 19088 | -7/Lower Caves | Learned location of Warlord (-4) 19126 | -7/Lower Caves | Learned location of 1 exit from Factory 19284 | -7/Lower Caves | Discovered new exit (range 12) 19650 | -7/Lower Caves | Entered another Lower Caves area 19650 | -7/Lower Caves | Accompanied by 2 allies 19675 | -7/Lower Caves | Discovered exit to Factory (range 4) 19800 | -7/Lower Caves | Encountered a Warlord checkpoint 19906 | -7/Lower Caves | Spotted B-75 Beast 20069 | -7/Lower Caves | Discovered new exit (range 10) 20194 | -7/Lower Caves | Entered Zion 20194 | -7/Zion | Accompanied by 1 ally 20207 | -7/Zion | Discovered new exit (range 15) 20224 | -7/Zion | System corruption cleaned by Quarantine Array 20238 | -7/Zion | Gained Derelict followers 20254 | -7/Zion | Given A8's code to call for help 20265 | -7/Zion | Found CR-A16's Pointy Stick 20298 | -7/Zion | Rebuked by Imprinter 20563 | -7/Zion | Entered Proximity Caves 20563 | -6/Proximity Caves | Accompanied by 6 allies 20822 | -6/Proximity Caves | Discovered exit to Factory (range 9) 20990 | -6/Proximity Caves | Learned Armory security intel 20997 | -6/Proximity Caves | Entered Factory 20997 | -6/Factory | Evolved 2 slots: Utility x2 20998 | -6/Factory | Identified exit to Factory 21483 | -6/Factory | Discovered new exit (range 15) 21658 | -6/Factory | Found Unknown Device 21658 | -6/Factory | Identified Launcher Loader 21863 | -6/Factory | Identified exit to Lower Caves 21887 | -6/Factory | Discovered exit to Factory (range 16) 21896 | -6/Factory | Destroyed 8 combat bots 21963 | -6/Factory | Cargo convoy interrupted 22025 | -6/Factory | Found Prototype Energy Cannon 22025 | -6/Factory | Identified Exp. Thermic Cannon 22099 | -6/Factory | Manually triggered Chute Trap 22099 | -6/Factory | Sucked down chute 22099 | -6/Factory | Entered Waste 22101 | -6/Waste | Spotted C-40 Crusher 22138 | -6/Waste | Warlord forces began an assault 22151 | -6/Waste | Allies destroyed C-40 Crusher 22156 | -6/Waste | Spotted C-40 Crusher 22167 | -6/Waste | Spotted C-40 Crusher 22171 | -6/Waste | Allies destroyed C-40 Crusher 22179 | -6/Waste | Spotted C-40 Crusher 22180 | -6/Waste | Allies destroyed C-40 Crusher 22202 | -6/Waste | Spotted C-40 Crusher 22211 | -6/Waste | Spotted C-40 Crusher 22222 | -6/Waste | Allies destroyed C-40 Crusher 22267 | -6/Waste | Discovered new exit (range 13) 22913 | -6/Waste | Entered Factory 22913 | -6/Factory | Accompanied by 11 allies 22943 | -6/Factory | Spotted B-75 Beast 22967 | -6/Factory | Allies destroyed B-75 Beast 23134 | -6/Factory | Discovered exit to Lower Caves (range 8) 23304 | -6/Factory | Repaired Lgt. Neutrino Core 23733 | -6/Factory | Build established: Wizard-Sprinter 23928 | -6/Factory | Repaired Imp. Trap Extractor 24071 | -6/Factory | Fabricated Adv. Hacking Suite (x1) 24126 | -6/Factory | Fabricated Adv. Hacking Suite? 24251 | -6/Factory | Cargo convoy interrupted 24573 | -6/Factory | Fabricated Adv. Hacking Suite? 24663 | -6/Factory | First assault squad dispatched 24713 | -6/Factory | Entered Lower Caves 24851 | -6/Lower Caves | Destroyed 8 combat bots 24977 | -6/Lower Caves | Spotted B-75 Beast 24999 | -6/Lower Caves | Discovered new exit (range 12) 25026 | -6/Lower Caves | Entered another Lower Caves area 25036 | -6/Lower Caves | Discovered exit to Factory (range 6) 25488 | -6/Lower Caves | Spotted B-75 Beast 25627 | -6/Lower Caves | Attracted the attention of an 0b10 checkpoint 25671 | -6/Lower Caves | Encountered a Warlord checkpoint 25673 | -6/Lower Caves | Discovered new exit (range 7) 25699 | -6/Lower Caves | Entered Data Miner 25699 | -6/Data Miner | Discovered new exit (range 6) 25722 | -6/Data Miner | Met Data Miner 25729 | -6/Data Miner | Learned location of Section 7 (-3) 25729 | -6/Data Miner | Acquired the access code to Warlord's prototype stash 25732 | -6/Data Miner | Received God Mode back door access code from Data Miner 25736 | -6/Data Miner | Destroyed Data Miner 25739 | -6/Data Miner | Found Prototype Hackware 25740 | -6/Data Miner | Found Prototype Hackware 25741 | -6/Data Miner | Found Prototype Hackware 25743 | -6/Data Miner | Data Conduit disabled 25781 | -6/Data Miner | Entered Proximity Caves 25871 | -5/Proximity Caves | Learned location of 1 exit from Factory 25876 | -5/Proximity Caves | Discovered exit to Factory (range 9) 25901 | -5/Proximity Caves | Entered Factory 25901 | -5/Factory | Evolved 2 slots: Propulsion x1, Utility x1 25902 | -5/Factory | Identified exit to Factory 25905 | -5/Factory | Identified Quantum Router 25905 | -5/Factory | Identified Ghost Barrier 25905 | -5/Factory | Identified System Mapper 25973 | -5/Factory | Spotted B-75 Beast 26107 | -5/Factory | Discovered exit to Factory (range 13) 26194 | -5/Factory | Repaired Mni. Smartbomb Launcher 26284 | -5/Factory | Repaired Cld. Nuclear Pulse Thruster? 26368 | -5/Factory | Repaired Gravity Neutralizer 26419 | -5/Factory | Identified exit to Upper Caves 26419 | -5/Factory | Identified exit to Extension 26458 | -5/Factory | Repaired Cld. Nuclear Pulse Thruster? 26560 | -5/Factory | Repaired Lgt. Neutrino Core 26632 | -5/Factory | Repaired Cld. VTOL Module 26671 | -5/Factory | Repaired Imp. Light Armor Plating 27156 | -5/Factory | Fabricated Cld. Nuclear Pulse Thruster (x1) 27271 | -5/Factory | Repaired Mni. Smartbomb Launcher 27401 | -5/Factory | First assault squad dispatched 28993 | -5/Factory | Manually triggered Chute Trap 28993 | -5/Factory | Sucked down chute 28993 | -5/Factory | Entered Waste 29004 | -5/Waste | Warlord forces began an assault 29076 | -5/Waste | Spotted C-40 Crusher 29079 | -5/Waste | Allies destroyed C-40 Crusher 29092 | -5/Waste | Spotted C-40 Crusher 29104 | -5/Waste | Spotted C-40 Crusher 29105 | -5/Waste | Allies destroyed C-40 Crusher 29112 | -5/Waste | Allies destroyed C-40 Crusher 29299 | -5/Waste | Spotted C-40 Crusher 29318 | -5/Waste | Allies destroyed C-40 Crusher 29358 | -5/Waste | Discovered new exit (range 16) 29450 | -5/Waste | Entered Factory 29450 | -5/Factory | Accompanied by 10 allies 29543 | -5/Factory | Spotted B-75 Beast 29576 | -5/Factory | Allies destroyed B-75 Beast 29749 | -5/Factory | Discovered exit to Factory (range 5) 29794 | -5/Factory | P-70 Sage assimilated allied VX-EK1(g) 30031 | -5/Factory | Build established: Wizard-Scout 30180 | -5/Factory | Cargo convoy interrupted 30361 | -5/Factory | Entered Upper Caves 30377 | -5/Upper Caves | Found Alien Artifact 30377 | -5/Upper Caves | Identified Core Expander 30377 | -5/Upper Caves | Installed Core Expander, added new Propulsion slot 30402 | -5/Upper Caves | Attracted the attention of an 0b10 checkpoint 30523 | -5/Upper Caves | Learned Extension garrison access intel 30523 | -5/Upper Caves | Learned Armory terminal intel 30523 | -5/Upper Caves | Learned Extension terminal intel 30523 | -5/Upper Caves | Learned Research emergency access door positions 30523 | -5/Upper Caves | Learned Factory emergency access door positions 30523 | -5/Upper Caves | Learned 6 Proximity Caves zone layouts 30523 | -5/Upper Caves | Learned location of 2 exits from Lower Caves 30523 | -5/Upper Caves | Learned location of Armory (-3) 30523 | -5/Upper Caves | Learned location of Extension (-5) 30549 | -5/Upper Caves | Encountered a Warlord checkpoint 30667 | -5/Upper Caves | Spotted B-75 Beast 30669 | -5/Upper Caves | Build established: Wizard-Sprinter 30718 | -5/Upper Caves | Discovered new exit (range 14) 30731 | -5/Upper Caves | Entered another Upper Caves area 30736 | -5/Upper Caves | Discovered exit to Factory (range 11) 30838 | -5/Upper Caves | Learned location of 1 exit from Factory 30867 | -5/Upper Caves | Discovered new exit (range 21) 30902 | -5/Upper Caves | Spotted B-75 Beast 30912 | -5/Upper Caves | Entered Zhirov 30912 | -5/Zhirov | Discovered new exit (range 3) 30917 | -5/Zhirov | Met Zhirov 30921 | -5/Zhirov | Learned location of Quarantine (-3) 30921 | -5/Zhirov | Learned location of Testing (-2) 30921 | -5/Zhirov | Learned location of Command (-1) 30923 | -5/Zhirov | Zhirov requested help retrieving the SGEMP Prototype 30927 | -5/Zhirov | Found Alien Artifact 30927 | -5/Zhirov | Identified Integrated Dissipator 30927 | -5/Zhirov | Installed Integrated Dissipator, increased core heat dissipation (+20) 30951 | -5/Zhirov | Found Alien Artifact 30965 | -5/Zhirov | Entered Proximity Caves 30975 | -4/Proximity Caves | Learned Research terminal intel 30993 | -4/Proximity Caves | Spotted B-86 Titan 31154 | -4/Proximity Caves | Received a Behemoth hack from an annoying Tinkerer 31202 | -4/Proximity Caves | Entered Factory 31202 | -4/Factory | Evolved 2 slots: Power x1, Propulsion x1 31203 | -4/Factory | Identified exit to Research 31233 | -4/Factory | Identified exit to Upper Caves 31608 | -4/Factory | Repaired Imp. Medium Armor Plating? 31777 | -4/Factory | Build established: Wizard-Scout 32038 | -4/Factory | Found Prototype Processor 32094 | -4/Factory | Identified Transdimensional Reconstructor 32094 | -4/Factory | Identified Exp. Terrain Scan Processor 32352 | -4/Factory | Spotted B-86 Titan 32450 | -4/Factory | Central database locked down 32496 | -4/Factory | Repaired Cld. Nuclear Pulse Thruster 34292 | -4/Factory | Cargo convoy interrupted 34339 | -4/Factory | Found Exp. Melee Analysis Suite 34354 | -4/Factory | Found Exp. Melee Analysis Suite 34356 | -4/Factory | Found Exp. Melee Analysis Suite 34358 | -4/Factory | Found Prototype Hackware 34358 | -4/Factory | Identified Exp. System Shield 34397 | -4/Factory | Found Prototype Device 34397 | -4/Factory | Identified Exp. Shock Absorption System 34402 | -4/Factory | Found Exp. Thermic Cannon 34520 | -4/Factory | Manually triggered Chute Trap 34520 | -4/Factory | Sucked down chute 34520 | -4/Factory | Entered Waste 34523 | -4/Waste | Spotted C-40 Crusher 34524 | -4/Waste | Spotted C-40 Crusher 34527 | -4/Waste | Spotted C-40 Crusher 34530 | -4/Waste | Discovered new exit (range 16) 34530 | -4/Waste | Spotted C-40 Crusher 34530 | -4/Waste | Spotted C-40 Crusher 34531 | -4/Waste | Entered Factory 34635 | -4/Factory | Discovered exit to Research (range 12) 34728 | -4/Factory | Discovered exit to Research (range 16) 34873 | -4/Factory | Spotted B-86 Titan 34972 | -4/Factory | Garrison activated, responded to threat 35042 | -4/Factory | Destroyed 8 combat bots 35286 | -4/Factory | Garrison activated, responded to threat 35326 | -4/Factory | Discovered exit to Research (range 15) 35673 | -4/Factory | Fabricated Cld. Impulse Thruster (x1) 35839 | -4/Factory | Cargo convoy interrupted 35897 | -4/Factory | Found Exp. Melee Analysis Suite 36015 | -4/Factory | Fabricated Exp. Utility Shielding (x1) 36130 | -4/Factory | Fabricated Cld. Impulse Thruster (x1) 36164 | -4/Factory | Entered Upper Caves 36165 | -4/Upper Caves | Learned 8 Research zone layouts 36223 | -4/Upper Caves | Attracted the attention of an 0b10 checkpoint 36369 | -4/Upper Caves | Discovered new exit (range 10) 36377 | -4/Upper Caves | Build established: Wizard-Sprinter 36382 | -4/Upper Caves | Entered another Upper Caves area 36386 | -4/Upper Caves | Spotted B-86 Titan 36505 | -4/Upper Caves | Discovered new exit (range 3) 36532 | -4/Upper Caves | Entered Warlord 36538 | -4/Warlord | Discovered new exit (range 12) 36798 | -4/Warlord | Warlord's base attacked by MAIN.C 36817 | -4/Warlord | Found Prototype Energy Cannon 36817 | -4/Warlord | Identified Vortex Driver 36820 | -4/Warlord | Found Prototype Energy Gun 36820 | -4/Warlord | Identified Vortex Rail 36836 | -4/Warlord | Met Warlord 36838 | -4/Warlord | Opened Warlord's prototype stash 36840 | -4/Warlord | Found System Mapper 36844 | -4/Warlord | Found Prototype Reactor 36844 | -4/Warlord | Identified Vortex Chain Reactor 36857 | -4/Warlord | Found Exp. Core Analyzer 37144 | -4/Warlord | Warlord forces counterattacked 37156 | -4/Warlord | Spotted Striker 37214 | -4/Warlord | Spotted Striker 37215 | -4/Warlord | Spotted B-90 Cyclops 37309 | -4/Warlord | Found Prototype Launcher 37342 | -4/Warlord | Spotted Striker 37451 | -4/Warlord | Identified Vortex Catalyst Activator 37473 | -4/Warlord | Warlord base infiltrated, sounded retreat 37475 | -4/Warlord | Spotted Striker 37493 | -4/Warlord | Spotted Striker 37531 | -4/Warlord | Spotted Executioner 37690 | -4/Warlord | Entered Proximity Caves 37690 | -3/Proximity Caves | Accompanied by 3 allies 38018 | -3/Proximity Caves | Discovered exit to Research (range 4) 38815 | -3/Proximity Caves | Entered Research 38815 | -3/Research | Evolved 2 slots: Utility x2 38816 | -3/Research | Identified exit to Research 38816 | -3/Research | Identified exit to Quarantine 38818 | -3/Research | Loaded intel: 22 terminal locations 38848 | -3/Research | Identified exit to Armory 39034 | -3/Research | Fabricated Femtoactuators? 39081 | -3/Research | Fabricated Exp. Utility Shielding? 39135 | -3/Research | Build established: Wizard-Scout 39176 | -3/Research | Fabricated Nanosword (x1) 39406 | -3/Research | Discovered exit to Research (range 5) 39450 | -3/Research | Repaired Mni. Smartbomb Launcher? 39510 | -3/Research | Spotted B-86 Titan 39858 | -3/Research | Spotted B-86 Titan 40001 | -3/Research | Central database locked down 40013 | -3/Research | Entered Quarantine 40014 | -3/Quarantine | Maximum security lockdown engaged 40056 | -3/Quarantine | Found Alien Artifact 40063 | -3/Quarantine | Found Alien Artifact 40063 | -3/Quarantine | Identified Core Reset Matrix 40063 | -3/Quarantine | Identified Subatomic Replicator 40063 | -3/Quarantine | Used Core Reset Matrix 40067 | -3/Quarantine | Detected hypermatrix surge 40067 | -3/Quarantine | Sensed 17 artifacts in vicinity 40067 | -3/Quarantine | Warped through subspace 40088 | -3/Quarantine | Found Hpw. Transdimensional Reconstructor 40093 | -3/Quarantine | Found Transdimensional Reconstructor 40167 | -3/Quarantine | Found Sigix Broadsword 40206 | -3/Quarantine | Spotted Fortress 40218 | -3/Quarantine | Discovered new exit (range 6) 40219 | -3/Quarantine | Entered Section 7 40220 | -3/Section 7 | Maximum security lockdown engaged 40220 | -3/Section 7 | Sensed 23 artifacts in vicinity 40226 | -3/Section 7 | Found Integrated Reactor 40226 | -3/Section 7 | Installed Integrated Reactor, increased core energy generation (+10) 40244 | -3/Section 7 | Found Integrated Dissipator 40244 | -3/Section 7 | Installed Integrated Dissipator, increased core heat dissipation (+20) 40265 | -3/Section 7 | Spotted S7 Guard 40275 | -3/Section 7 | Warped through subspace 40277 | -3/Section 7 | Found Integrated Reactor 40277 | -3/Section 7 | Installed Integrated Reactor, increased core energy generation (+10) 40280 | -3/Section 7 | Spotted B-99 Colossus 40301 | -3/Section 7 | Found LRC Armor 40301 | -3/Section 7 | Installed LRC Armor, increased core integrity (+250) 40303 | -3/Section 7 | Used Subatomic Replicator to replicate LRC Boosters 40304 | -3/Section 7 | Found LRC Boosters 40304 | -3/Section 7 | Installed LRC Boosters, increased mass support (+10) 40306 | -3/Section 7 | Installed LRC Boosters, increased mass support (+10) 40316 | -3/Section 7 | Found Integrity Redistributor 40317 | -3/Section 7 | Found Integrity Redistributor 40320 | -3/Section 7 | Found Integrity Redistributor 40338 | -3/Section 7 | Found Hpw. Transdimensional Reconstructor 40341 | -3/Section 7 | Found Transdimensional Reconstructor 40371 | -3/Section 7 | Spotted S7 Guard 40376 | -3/Section 7 | Found Core Membrane 40376 | -3/Section 7 | Installed Core Membrane, gained immunity to corruption 40390 | -3/Section 7 | Discovered exit to Research (range 9) 40396 | -3/Section 7 | Found Spacefold Activator 40399 | -3/Section 7 | Entered Research 40399 | -2/Research | Warlord forces began assault on 0b10 40399 | -2/Research | Evolved 2 slots: Utility x2 40406 | -2/Research | Identified exit to Access 40406 | -2/Research | Identified exit to Testing 40424 | -2/Research | Distinguished unit "Vikings" dispatched to help 40431 | -2/Research | Central database locked down 40431 | -2/Research | Hacking Suite fried by hacking feedback 40476 | -2/Research | Fabricated Exp. Phase Shifter (x1) 40509 | -2/Research | Research machine network offline 40562 | -2/Research | Spotted B-90 Cyclops 40568 | -2/Research | Build established: Wizard-Sprinter 40575 | -2/Research | Spotted B-90 Cyclops 40582 | -2/Research | Found Unknown Device 40582 | -2/Research | Identified Launcher Loader 40675 | -2/Research | Met up with Warlord 40968 | -2/Research | Borebot progress halted 41009 | -2/Research | Found Prototype Device 41029 | -2/Research | Identified Beam Splitter 41153 | -2/Research | Spotted Striker 41204 | -2/Research | Found Exp. Melee Analysis Suite 41268 | -2/Research | Spotted Executioner 41283 | -2/Research | Spotted Striker 41288 | -2/Research | Spotted Striker 41289 | -2/Research | Spotted Striker 41477 | -2/Research | Spotted Executioner 41479 | -2/Research | Spotted Executioner 41503 | -2/Research | Found Exp. Core Analyzer 41506 | -2/Research | Spotted Striker 41604 | -2/Research | Entered Access 41604 | -1/Access | Evolved 2 slots: Power x1, Utility x1 41902 | -1/Access | Identified exit to Command 41937 | -1/Access | Build established: Wizard-Scout 41983 | -1/Access | Central database locked down 42028 | -1/Access | Fabricated Adv. Force Booster? 42104 | -1/Access | Search patrols dispatched 42180 | -1/Access | Spotted B-99 Colossus 42181 | -1/Access | Spotted B-99 Colossus 42231 | -1/Access | Fabricated Exp. Armor Integrity Analyzer? 42599 | -1/Access | Entered Command 42621 | -1/Command | Identified exit to Surface 42661 | -1/Command | Disengaged cave seal 42661 | -1/Command | Derelicts emerged from the dark tunnel 42661 | -1/Command | Welcomed Warlord to Command 42840 | -1/Command | Disengaged cave seal 42882 | -1/Command | Spotted B-99 Colossus 42883 | -1/Command | Build established: Wizard-Sprinter 42886 | -1/Command | Rewired B-99 Colossus 42914 | -1/Command | Repaired Mic. Antimatter Reactor 43031 | -1/Command | Warlord commented on Warlord statues 43039 | -1/Command | Spotted Combat Programmer 43039 | -1/Command | Spotted M Guard 43039 | -1/Command | Spotted M Guard 43041 | -1/Command | Spotted Combat Programmer 43053 | -1/Command | Found Prototype Energy Cannon 43061 | -1/Command | Destroyed M Guard 43069 | -1/Command | Found Prototype Reactor 43079 | -1/Command | Found Prototype Device 43080 | -1/Command | Destroyed M Guard 43082 | -1/Command | Destroyed Combat Programmer 43082 | -1/Command | All MAIN.C guards destroyed 43090 | -1/Command | Identified Zero-point Reactor 43099 | -1/Command | Identified AEGIS Remote Shield 43204 | -1/Command | Met MAIN.C 43208 | -1/Command | 0b10 Conduit disabled 43226 | -1/Command | Destroyed MAIN.C Shell 43227 | -1/Command | MAIN.C activated Command garrisons 43245 | -1/Command | Destroyed MAIN.C 43247 | -1/Command | Identified Cld. Nova Cannon 43247 | -1/Command | Discovered exit to Surface (range 33) 43247 | -1/Command | Discovered exit to Surface (range 86) 43247 | -1/Command | Extracted map data and part IDs from MAIN.C's data core 43273 | -1/Command | Build established: Alien-Sprinter 43590 | -1/Command | Build established: Alien-Gladiator 44367 | -1/Command | Phase Generator disabled 44524 | -1/Command | Build established: Alien-Sprinter 44895 | -1/Command | Found Perforator 44899 | -1/Command | Found Exp. Phase Shifter 44921 | -1/Command | Used Integrity Redistributor, redistributed integrity from core (-151) 45103 | -1/Command | Build established: Alien-Gladiator 45122 | -1/Command | Warped through subspace to slip node 45122 | -1/Command | Discovered new exit (range 5) 45128 | -1/Command | Entered Access_0 45129 | -1/Access_0 | Sensed 2 artifacts in vicinity 45129 | -1/Access_0 | Met Architect 45156 | -1/Access_0 | Subspace Access Node disabled 45168 | -1/Access_0 | A6 warped into view 45217 | -1/Access_0 | Destroyed A6 45242 | -1/Access_0 | A5 warped into view 45280 | -1/Access_0 | Subspace Access Node disabled 45305 | -1/Access_0 | A4 warped into view 45307 | -1/Access_0 | Subspace Access Node disabled 45411 | -1/Access_0 | Architect warped through subspace 45437 | -1/Access_0 | Build established: Alien-Sprinter 45479 | -1/Access_0 | Singularity Gate disabled 45485 | -1/Access_0 | A3 warped into view 45554 | -1/Access_0 | Destroyed A3 45563 | -1/Access_0 | Used Integrity Redistributor, redistributed integrity from core (-249) 45581 | -1/Access_0 | Subspace Access Node disabled 45657 | -1/Access_0 | Destroyed Architect 45658 | -1/Access_0 | Extracted unknown sensor trigger ID from Architect's data core 45668 | -1/Access_0 | Destroyed A2 45670 | -1/Access_0 | Extracted Singularity Gate Test 138-C access codes from A2's data core 45701 | -1/Access_0 | Destroyed A8 45706 | -1/Access_0 | Destroyed A5 45727 | -1/Access_0 | Found Prototype Protection 45727 | -1/Access_0 | Identified Centrium Linked Plating 45757 | -1/Access_0 | Destroyed A4 45830 | -1/Access_0 | Destroyed 7 combat bots 46246 | -1/Access_0 | Found Sigix Corpse 46259 | -1/Access_0 | Found Prototype Hackware 46259 | -1/Access_0 | Identified Architect God Chip D 46262 | -1/Access_0 | Found Prototype Hackware 46262 | -1/Access_0 | Identified Architect God Chip A 46275 | -1/Access_0 | Found Centrium Linked Plating 46482 | -1/Access_0 | Found Core Regenerator 46482 | -1/Access_0 | Used Core Regenerator, restored core integrity (+462) 46644 | -1/Access_0 | Found Hpw. Transdimensional Reconstructor 46645 | -1/Access_0 | Warped through subspace to slip node 46645 | -1/Access_0 | Discovered exit to Surface (range 8) 46649 | *** | Heading to fleet! Last Messages --------------- 46482_ Core integrity regenerated (+462). 46484_ Acquired Femtoactuators. 46496_ Sneak attack on Enhanced Grunt. 46496_ Enhanced Grunt destroyed. 46499_ Sneak attack on Enhanced Grunt. 46499_ Enhanced Grunt suffers critical hit (Impale). 46499_ Destroyed Adv. Energy Well. 46501_ Plasma Lance follow-up attack on Enhanced Grunt. 46502_ Enhanced Grunt destroyed. 46504_ Acquired 20 matter. 46506_ Destroyed Adv. Particle Charger. 46511_ Enhanced Grunt destroyed. 46514_ Destroyed Adv. Heat Sink. 46518_ Enhanced Grunt destroyed. 46638_ Gate Controls disabled. 46644_ Dropped Exp. Utility Shielding. 46644_ Acquired Hpw. Transdimensional Reconstructor. 46645_ Warped through subspace, drawn to slip node. 46645_ EXIT=FOUND: SURFACE Map ----- +----------------------------------------------------+ | | | | | | | | | | | | | | | | | | | | | | | | | | | | | | | | | ?????????????????????????????????????????????????? | | ?????????????????????????????????????????????????? | | ?????????????????????????????????????????????????? | | ?????????????????????????????????????????????????? | | ?????????????????????????????????????????????????? | | ?????????????????????????????????????????????????? | | ????????????????????????###??????????????????????? | | ???????????????????????## ##?????????????????????? | | ???????????????????????# #?????????????????????? | | ???????????????????????# @ #?????????????????????? | | ??????????????????????## #?????????????????????? | | ??????????????????????# #?????????????????????? | | ??????????????????????# ##?????????????????????? | | ??????????????????????## #?????????????????????? | | ??????????????????????# #?????????????????????? | | ??????????????????????# ##?????????????????????? | | ??????????????????????# < #?????????????????????? | | ??????????????????????# ##?????????????????????? | | ??????????????????????## #??????????????????????? | | ???????????????????????####??????????????????????? | | ?????????????????????????????????????????????????? | | ?????????????????????????????????????????????????? | | ?????????????????????????????????????????????????? | | ?????????????????????????????????????????????????? | | ?????????????????????????????????????????????????? | | ?????????????????????????????????????????????????? | | ?????????????????????????????????????????????????? | | ?????????????????????????????????????????????????? | | ?????????????????????????????????????????????????? | | ?????????????????????????????????????????????????? | | ?????????????????????????????????????????????????? | | ?????????????????????????????????????????????????? | | ?????????????????????????????????????????????????? | | ?????????????????????????????????????????????????? | +----------------------------------------------------+ Best States ------------- Heat Dissipation 92 Energy Generation 81 Energy Capacity 840 Matter Stores 300 Matter Capacity 300 Sight Range 23 Terrain Scan Range 24 Terrain Scan Density 1010 ECM Strength 2 Jamming Range 16 Power Amplification 30 Additional Mass Support 25 Armor Coverage 800 Resistance: TH 25 Resistance: EM 15 Power Shielding 66 Propulsion Shielding 66 Utility Shielding 90 Weapon Shielding 66 Melee Speed Boost 50 Phase Shifting 20 Evasion (%) 100 Melee Accuracy 36 Core Analysis 8 Armor Integrity Analysis 50 Recoil Reduction 3 Force Boost 40 Offensive Hacking 80 Defensive Hacking 100 Authchip Count 4 Trap Extractor Capacity 6 Item Schematics ----------------- Exp. Phase Shifter | -2/Research | Hacked Exp. Armor Integrity Analyzer | -1/Access | Hacked Adv. Force Booster | -1/Access | Hacked Robot Schematics ------------------ None Fabricated ------------ Cld. VTOL Module | x1 | -7/Factory | Authchip Cld. VTOL Module | x1 | -7/Factory | Authchip Cld. Nuclear Pulse Thruster | x1 | -7/Factory Cld. Nuclear Pulse Thruster | x1 | -7/Factory Cld. Nuclear Pulse Thruster | x1 | -7/Factory Adv. Hacking Suite | x1 | -6/Factory | Authchip Adv. Hacking Suite | x1 | -6/Factory Adv. Hacking Suite | x1 | -6/Factory Cld. Nuclear Pulse Thruster | x1 | -5/Factory Cld. Impulse Thruster | x1 | -4/Factory | Authchip Exp. Utility Shielding | x1 | -4/Factory Cld. Impulse Thruster | x1 | -4/Factory Femtoactuators | x1 | -3/Research | Authchip Exp. Utility Shielding | x1 | -3/Research | Authchip Nanosword | x1 | -3/Research Exp. Phase Shifter | x1 | -2/Research Adv. Force Booster | x2 | -1/Access | Authchip Exp. Armor Integrity Analyzer | x1 | -1/Access | Authchip Alien Tech Used ----------------- Core Expander Integrated Dissipator Core Reset Matrix Transdimensional Reconstructor Sigix Broadsword Integrated Reactor High-powered Transdimensional Reconstructor LRC Armor Subatomic Replicator LRC Boosters Core Membrane Spacefold Activator Integrity Redistributor Core Regenerator Achievements -------------- None Challenges ------------ None Game ------ Seed ArcConcussiveClaw Manual? 0 Play Time 10:27:45 Cumulative 954.7 hours Start 2023.09.04 @ 09:51:32 End 2023.09.05 @ 15:24:05 Sessions 3 Manual Loads 0 Difficulty Rogue Special Mode None Game No. 426 Rogue 425 Adventurer 1 Explorer 0 Win Type 2 Total 143 Types 36/13/22/4/2/1/60/3/2 Lore% 96 Gallery% 99 Achievement% 92 Wizard Run 0 Options --------- ASCII 0 Keyboard 1 Movement Numpad Keybinds 0 Fullscreen 0 Font 18/Smallcaps Map View 76x50 Tactical HUD 1 Map Filters NONE Filters NONE Steam 1 RUN: 279b913f-fa45-4f6f-9ff5-31c3ce007826